2CCN - Level 2 Cost Centre Name,,9CCN - Level 9 Cost Centre Name,9CCC - Level 9 Cost Centre Code,9AN - Level 9 Account Name,9AC - Level 9 Account Code,Transaction Description,Date Paid,Transaction Reference,Analysed Amount,2AC - Level 2 Account Codes,Supplier Name,Supplier Code
Gloucester City Council,23UE,REDACTED,REDACTED,REDACTED,REDACTED,REDACTED,03/11/2014,REDACTED,18,NET,REDACTED,REDACTED
Gloucester City Council,23UE,Cctv Revenue Budget,FP501,Security Equipment Serv/Repair,3038,Maintenance April 2014,03/11/2014,392985,1726.67,NET,Quadrant Security Group Ltd,05109A
Gloucester City Council,23UE,Cctv Revenue Budget,FP501,Security Equipment Serv/Repair,3038,Maintenance August 2014,03/11/2014,392989,1726.67,NET,Quadrant Security Group Ltd,05109A
Gloucester City Council,23UE,Cctv Revenue Budget,FP501,Security Equipment Serv/Repair,3038,Maintenance July 2014,03/11/2014,392988,1726.67,NET,Quadrant Security Group Ltd,05109A
Gloucester City Council,23UE,Cctv Revenue Budget,FP501,Security Equipment Serv/Repair,3038,Maintenance June 2014,03/11/2014,392987,1726.67,NET,Quadrant Security Group Ltd,05109A
Gloucester City Council,23UE,Cctv Revenue Budget,FP501,Security Equipment Serv/Repair,3038,Maintenance May 2014,03/11/2014,392986,1726.67,NET,Quadrant Security Group Ltd,05109A
Gloucester City Council,23UE,Civil Parking Enforcement,PT741,On Street Parking Charges,6550,Parking Income August 2014,03/11/2014,391661,46977.6,NET,Gloucestershire County Council,18650D
Gloucester City Council,23UE,REDACTED,REDACTED,REDACTED,REDACTED,REDACTED,03/11/2014,REDACTED,22500,CAP,REDACTED,REDACTED
Gloucester City Council,23UE,Docks Complex - Services,RB100,Cleaning Materials,3600,Cleaning Materials,03/11/2014,392577,35.73,NET,Cleanmy Ltd,06971S
Gloucester City Council,23UE,Environmental Planning,LM340,Fees For Services Received,5350,"Grounds Maintenance, Kingsway",03/11/2014,392904,3000,NET,Charlton Abbotts Forestry Ltd,14989X
Gloucester City Council,23UE,Gf Lifelinks,CH180,Contracted Services,6970,August 2014 Management Fee,03/11/2014,389115,5270.83,NET,Gloucester City Homes,05244T
Gloucester City Council,23UE,Gf Lifelinks,CH180,Contracted Services,6970,October 2014 Management Fees,03/11/2014,393096,5270.83,NET,Gloucester City Homes,05244T
Gloucester City Council,23UE,Homelessness,CH120,Rent In Advance,5516,RIA & Deposit,03/11/2014,393215,364.6,NET,Chosen Properties Ltd,13398N
Gloucester City Council,23UE,Homelessness Prevention,CH122,Fees For Services Received,5350,RIA & Deposit,03/11/2014,393215,425,NET,Chosen Properties Ltd,13398N
Gloucester City Council,23UE,Legal Services,RS200,Basic Pay - Temporary Staff,2751,Temporary Staff w/e 12/10/2014,03/11/2014,392938,454.37,NET,Premiere Employment Ltd,55468Z
Gloucester City Council,23UE,Legal Services,RS200,Basic Pay - Temporary Staff,2751,Temporary Staff w/e 19/10/2014,03/11/2014,393112,487.29,NET,Premiere Employment Ltd,55468Z
Gloucester City Council,23UE,Retail Market - Landlord,HM300,Operational Equipment <5000,5012,2D LAMPS,03/11/2014,391444,149.2,NET,City Electrical Factors*,09325C
Gloucester City Council,23UE,Retail Market - Landlord,HM300,Operational Equipment <5000,5012,g24d-2 lamps,03/11/2014,391973,74.2,NET,City Electrical Factors*,09325C
Gloucester City Council,23UE,The Arbor,HC501,Catering Provisions -Food,5110,Food w/e 05/10/2014,03/11/2014,392156,113.16,NET,Janes Pantry,24500W
Gloucester City Council,23UE,The Arbor,HC501,Catering Provisions -Food,5110,Food w/e 12/10/2014,03/11/2014,392869,66.68,NET,Janes Pantry,24500W
Gloucester City Council,23UE,The Arbor,HC501,Catering Provisions -Food,5110,Food w/e 19/10/2014,03/11/2014,392922,214.9,NET,Janes Pantry,24500W
Gloucester City Council,23UE,Building Control,PT400,Basic Pay - Temporary Staff,2751,Temporary Staff w/e 12/10/2014,04/11/2014,392868,1510.25,NET,The Oyster Partnership Limited,14900T
Gloucester City Council,23UE,Building Control,PT400,Basic Pay - Temporary Staff,2751,Temporary Staff w/e 19/10/2014,04/11/2014,393105,1507.45,NET,The Oyster Partnership Limited,14900T
Gloucester City Council,23UE,Building Control,PT400,Basic Pay - Temporary Staff,2751,Temporary Staff w/e 12/10/2014,04/11/2014,392867,1608.4,NET,The Oyster Partnership Limited,14900T
Gloucester City Council,23UE,Building Control,PT400,Basic Pay - Temporary Staff,2751,Temporary Staff w/e 19/10/2014,04/11/2014,393086,1546.9,NET,The Oyster Partnership Limited,14900T
Gloucester City Council,23UE,Cctv Revenue Budget,FP501,Security Equipment Serv/Repair,3038,For Vehicle & Operative,04/11/2014,393131,550,NET,Southern Electric Contracting Ltd*,08337R
Gloucester City Council,23UE,REDACTED,REDACTED,REDACTED,REDACTED,REDACTED,04/11/2014,REDACTED,163,NET,REDACTED,REDACTED
Gloucester City Council,23UE,City Museum Catering,LM202,Catering Provisions -Food,5110,Coffee Beans,04/11/2014,392852,52,NET,James Gourmet Coffee Co.,55049A
Gloucester City Council,23UE,City Museum Catering,LM202,Catering Provisions -Food,5110,Coffee Beans & Hot Chocolate,04/11/2014,392851,49.25,NET,James Gourmet Coffee Co.,55049A
Gloucester City Council,23UE,Commuted Funds- Social Housing,CY047,Contract Payments,0020,Contributions re Rent to Homebuy,04/11/2014,393238,78750,CAP,Westlea Housing Association T/A Greensquare,15441V
Gloucester City Council,23UE,Contact Centre,RB300,Fees For Services Received,5350,"Monthly Fee, November 2014",04/11/2014,393057,226.69,NET,Office Response,09439K
Gloucester City Council,23UE,Council Streetcare Team,HI101,Maint Of Grounds - General,3030,"Plock Court, fence repair",04/11/2014,392906,96,NET,Greenfields Garden Services Ltd,48130G
Gloucester City Council,23UE,Development Management,PT200,Advertising And Publicity,5702,Advertisement 23/10/2014,04/11/2014,393098,321.38,NET,Local World Ltd,08556P
Gloucester City Council,23UE,Docks Complex - Telephones,RB120,Lease Lines,5411,Call Chares September 2014,04/11/2014,392585,2367.21,NET,Gamma Business Communications,10260A
Gloucester City Council,23UE,Docks Complex - Telephones,RB120,Lease Lines,5411,Call Charges September 2014,04/11/2014,392583,3948.11,NET,Gamma Business Communications,10260A
Gloucester City Council,23UE,Docks Complex - Telephones,RB120,Telephones And Fax,5410,Call Charges August 2014,04/11/2014,391015,2181.53,NET,Gamma Business Communications,10260A
Gloucester City Council,23UE,REDACTED,REDACTED,REDACTED,REDACTED,REDACTED,04/11/2014,REDACTED,80,NET,REDACTED,REDACTED
Gloucester City Council,23UE,Guildhall Bar And Caf�,LA210,Catering Provisions -Food,5110,Food w/e 19/10/2014,04/11/2014,392924,32.9,NET,Janes Pantry,24500W
Gloucester City Council,23UE,REDACTED,REDACTED,REDACTED,REDACTED,REDACTED,04/11/2014,REDACTED,110,NET,REDACTED,REDACTED
Gloucester City Council,23UE,REDACTED,REDACTED,REDACTED,REDACTED,REDACTED,04/11/2014,REDACTED,484.6,NET,REDACTED,REDACTED
Gloucester City Council,23UE,REDACTED,REDACTED,REDACTED,REDACTED,REDACTED,04/11/2014,REDACTED,525,NET,REDACTED,REDACTED
Gloucester City Council,23UE,Investment Property,RB500,General Repair/Maint Buildings,3000,"Work on 04/10/2014, GL1",04/11/2014,392942,1691.46,NET,Pickerings Europe Ltd*,58816U
Gloucester City Council,23UE,Legal Services,RS200,Basic Pay - Temporary Staff,2751,Temporary Staff w/e 19/10/2014,04/11/2014,392824,1254.1,NET,Venn Group Ltd,04339P
Gloucester City Council,23UE,Legal Services,RS200,Basic Pay - Temporary Staff,2751,Temporary Staff w/e 17/10/2014,04/11/2014,392925,642.16,NET,Sellick Partnership Group Ltd,11057C
Gloucester City Council,23UE,Legal Services,RS200,Basic Pay - Temporary Staff,2751,Temporary Staff w/e 24/10/2014,04/11/2014,393068,515.07,NET,Sellick Partnership Group Ltd,11057C
Gloucester City Council,23UE,Legal Services,RS200,Basic Pay - Temporary Staff,2751,Temporary Staff w/e 19/10/2014,04/11/2014,392927,927.5,NET,Michael Page International Recruitment Ltd,06601P
Gloucester City Council,23UE,Legal Services,RS200,Basic Pay - Temporary Staff,2751,Temporary Staff w/e 19/10/2014,04/11/2014,392823,1550.35,NET,Venn Group Ltd,04339P
Gloucester City Council,23UE,Licences,HE510,Gating Orders,5541,"Organs Alley, Plate to Gate",04/11/2014,393104,80,NET,Greenfields Garden Services Ltd,48130G
Gloucester City Council,23UE,Planning Policy,PT300,Basic Pay - Temporary Staff,2751,Temporary Staff w/e 12/10/2014,04/11/2014,392846,1400,NET,The Oyster Partnership Limited,14900T
Gloucester City Council,23UE,Planning Policy,PT300,Basic Pay - Temporary Staff,2751,Temporary Staff w/e 19/10/2014,04/11/2014,393087,1750,NET,The Oyster Partnership Limited,14900T
Gloucester City Council,23UE,Postal Services,RS120,Postages,5400,Response plus service 27/09 -11/10 2014,04/11/2014,393107,235.16,NET,Royal Mail S.Wales & South West,35830S
Gloucester City Council,23UE,St Michaels Tower,GY016,Contract Payments,0020,"Two men, two days Materials & Labour",04/11/2014,392871,1850,CAP,Nbc Bird & Pest Solutions Ltd,04603W
Gloucester City Council,23UE,Asset Management,RS300,Basic Pay - Temporary Staff,2751,Temporary Staff w/e 05/09/2014,05/11/2014,393342,1265.76,NET,Hays Specialist Recruitment,04355S
Gloucester City Council,23UE,Asset Management,RS300,Basic Pay - Temporary Staff,2751,Temporary Staff w/e 12/09/2014,05/11/2014,393343,1082.75,NET,Hays Specialist Recruitment,04355S
Gloucester City Council,23UE,Asset Management,RS300,Basic Pay - Temporary Staff,2751,Temporary Staff w/e 22/08/2014,05/11/2014,393340,541.38,NET,Hays Specialist Recruitment,04355S
Gloucester City Council,23UE,Asset Management,RS300,Basic Pay - Temporary Staff,2751,Temporary Staff w/e 29/08/2014,05/11/2014,393341,1166.63,NET,Hays Specialist Recruitment,04355S
Gloucester City Council,23UE,Cems/Crems Admin,HC100,Office Equipment <5000,5010,Diaries,05/11/2014,393278,10.15,NET,Office Star Group Ltd,55874H
Gloucester City Council,23UE,Civil Parking Enforcement,PT741,Computer Software Maintenance,5427,Cashless parking fees,05/11/2014,393305,511.75,NET,Chipside Ltd,06535T
Gloucester City Council,23UE,Civil Parking Enforcement,PT741,Computer Software Maintenance,5427,Cashless parking fees,05/11/2014,393307,487.5,NET,Chipside Ltd,06535T
Gloucester City Council,23UE,Civil Parking Enforcement,PT741,Computer Software Maintenance,5427,Merchant ID Bank Charges,05/11/2014,393304,2611.93,NET,Chipside Ltd,06535T
Gloucester City Council,23UE,Civil Parking Enforcement,PT741,Computer Software Maintenance,5427,Merchant ID Bank Charges,05/11/2014,393306,1228.51,NET,Chipside Ltd,06535T
Gloucester City Council,23UE,Civil Parking Enforcement,PT741,On Street Parking Charges,6550,"Income, on street parking",05/11/2014,393329,9658.14,NET,Gloucestershire County Council,18650D
Gloucester City Council,23UE,Client Revs & Bens Contract,RT240,Bailiffs Fees,5368,VAT on fees collected,05/11/2014,393289,0,NET,Phoenix Commercial Collections Ltd,13435J
Gloucester City Council,23UE,Contact Centre,RB300,Basic Pay -Admin /Prof Staff,2601,Temporary Staff w/e 17/10/2014,05/11/2014,393338,191.4,NET,One To One Recruitment,04752H
Gloucester City Council,23UE,Council Streetcare Team,HI101,Operational Equipment <5000,5012,Coats,05/11/2014,393314,91.6,NET,Safpro Industrial Supply Co,39190W
Gloucester City Council,23UE,Countryside Unit,LP201,Clothing,5200,Various Items,05/11/2014,393322,14.99,NET,Buxtons Ltd,05590U
Gloucester City Council,23UE,Countryside Unit,LP201,Maint Of Grounds - General,3030,125mm round wire,05/11/2014,393308,13.46,NET,Screwfix Direct*,54672H
Gloucester City Council,23UE,Countryside Unit,LP201,Maint Of Grounds - General,3030,Various Items,05/11/2014,393322,158.45,NET,Buxtons Ltd,05590U
Gloucester City Council,23UE,Countryside Unit,LP201,Maint Of Grounds - General,3030,Various Items,05/11/2014,393356,20.83,NET,Screwfix Direct*,54672H
Gloucester City Council,23UE,Countryside Unit,LP201,Safety Equipment,5013,Class 1 Trousers,05/11/2014,393331,116.67,NET,Buxtons Ltd,05590U
Gloucester City Council,23UE,Countryside Unit,LP201,Safety Equipment,5013,Various Items,05/11/2014,393322,76.8,NET,Buxtons Ltd,05590U
Gloucester City Council,23UE,Countryside Unit,LP201,Safety Equipment,5013,Various Items,05/11/2014,393357,43.68,NET,Buxtons Ltd,05590U
Gloucester City Council,23UE,Crematorium,HC200,Fees For Services Received,5350,Crem Fees Oct 2014,05/11/2014,393359,1249.52,NET,Dr C M Stretton,00306P
Gloucester City Council,23UE,Crematorium,HC200,Fees For Services Received,5350,Crem Fees Oct 2014,05/11/2014,393360,763.52,NET,Dr D Martin,00890P
Gloucester City Council,23UE,Crematorium,HC200,Fees For Services Received,5350,Crem Fees Oct 2014,05/11/2014,393361,664.32,NET,Dr R W Bell,01571P
Gloucester City Council,23UE,Disabled Facilities Grants,CY013,Disabled Facility Grants,0074,Retention,05/11/2014,382684,1479.78,CAP,Snape Construction Ltd,40958T
Gloucester City Council,23UE,Docks Complex - Services,RB100,Cleaning Materials,3600,Novette Super,05/11/2014,393316,7.64,NET,Core Hygiene Ltd,03885P
Gloucester City Council,23UE,Docks Complex - Telephones,RB120,Telephones And Fax,5410,Charges acct VP75978270,05/11/2014,392177,2246.6,NET,Bt Payment Services Ltd,56283E
Gloucester City Council,23UE,Environmental Planning,LM340,Overtime -Duty Managers,1503,full colour poster printing,05/11/2014,388813,50,NET,Service Point Uk Ltd*,58885Y
Gloucester City Council,23UE,Events,LT410,Bank Charges And Adjustments,5950,Firework event 08/11/2014,05/11/2014,393358,5250,NET,Laser Hire,59139U
Gloucester City Council,23UE,Financial Services,RT200,Consultants Fees,5349,Bank Tender Response,05/11/2014,393327,1068.1,NET,Brc Consulting Services Ltd,11540F
Gloucester City Council,23UE,Financial Services,RT200,Vocational Training,2970,AAT Level 3 & 4 Training,05/11/2014,393336,1266.31,NET,Premier Training Centre Llp,15004Y
Gloucester City Council,23UE,Folk Museum,LM210,Sewerage And Environ Charges,3402,OCS GROUP UK LIMITED TA CANNON,05/11/2014,391710,18.33,NET,Ocs Group Uk Limited T/A Cannon,06506A
Gloucester City Council,23UE,Gloucester Guildhall,LA100,Cleaning Materials,3600,Cleaning Materials,05/11/2014,393292,101,NET,Gpp Hygiene,06080P
Gloucester City Council,23UE,Guildhall Bar And Caf�,LA210,Catering Provisions -Liquor,5111,Suremix,05/11/2014,393281,8.38,NET,Boc Ltd,59172L
Gloucester City Council,23UE,REDACTED,REDACTED,REDACTED,REDACTED,REDACTED,05/11/2014,REDACTED,100,NET,REDACTED,REDACTED
Gloucester City Council,23UE,REDACTED,REDACTED,REDACTED,REDACTED,REDACTED,05/11/2014,REDACTED,100,NET,REDACTED,REDACTED
Gloucester City Council,23UE,REDACTED,REDACTED,REDACTED,REDACTED,REDACTED,05/11/2014,REDACTED,143.65,NET,REDACTED,REDACTED
Gloucester City Council,23UE,REDACTED,REDACTED,REDACTED,REDACTED,REDACTED,05/11/2014,REDACTED,43.75,NET,REDACTED,REDACTED
Gloucester City Council,23UE,REDACTED,REDACTED,REDACTED,REDACTED,REDACTED,05/11/2014,REDACTED,80,NET,REDACTED,REDACTED
Gloucester City Council,23UE,REDACTED,REDACTED,REDACTED,REDACTED,REDACTED,05/11/2014,REDACTED,100,NET,REDACTED,REDACTED
Gloucester City Council,23UE,REDACTED,REDACTED,REDACTED,REDACTED,REDACTED,05/11/2014,REDACTED,350,NET,REDACTED,REDACTED
Gloucester City Council,23UE,REDACTED,REDACTED,REDACTED,REDACTED,REDACTED,05/11/2014,REDACTED,120,NET,REDACTED,REDACTED
Gloucester City Council,23UE,REDACTED,REDACTED,REDACTED,REDACTED,REDACTED,05/11/2014,REDACTED,140,NET,REDACTED,REDACTED
Gloucester City Council,23UE,Parks Contract Management,LP100,Maint Of Grounds - General,3030,Supply new rope nest swing seat,05/11/2014,393355,650,NET,Sunshine Playgrounds Ltd,14958J
Gloucester City Council,23UE,Postal Services,RS120,Stationery,5302,Stationary,05/11/2014,393309,45.64,NET,Lyreco Uk Ltd,11746G
Gloucester City Council,23UE,Postal Services,RS120,Stationery,5302,Stationary,05/11/2014,393310,36.35,NET,Lyreco Uk Ltd,11746G
Gloucester City Council,23UE,Stationery Services,RS150,Printing,5300,2691450OP90X4,05/11/2014,393328,54.08,NET,Stanford Marsh Ltd*,51139M
Gloucester City Council,23UE,The Arbor,HC501,Catering Provisions -Food,5110,Monthly Machine Warranty,05/11/2014,393277,61.58,NET,Caffeica Ltd,11923J
Gloucester City Council,23UE,Blackfriars,LA609,Hire Of Equipment,5020,Chairs,06/11/2014,393279,103.6,NET,Valley Furniture Hire Ltd,08324P
Gloucester City Council,23UE,Blackfriars,LA609,Hire Of Equipment,5020,Wine Goblet,06/11/2014,393270,65,NET,Gloucester Event Hire,56935D
Gloucester City Council,23UE,Business Support,PT250,Basic Pay - Cleaners,2401,"60,000 mile service",06/11/2014,393402,749.61,NET,Blade Motor Company,13671U
Gloucester City Council,23UE,Business Support,PT250,Routine R And M - Vehicles,4011,"60,000 mile service",06/11/2014,393402,154.16,NET,Blade Motor Company,13671U
Gloucester City Council,23UE,Cemeteries,HC300,Purch Vehicles/M. Plant <5000,4000,Steel Soil Box,06/11/2014,393300,675,NET,Teleshore (Uk) Ltd,56819G
Gloucester City Council,23UE,Cemeteries,HC300,Routine R And M - Vehicles,4011,Deck Smoking,06/11/2014,393241,191.34,NET,Garden Machinery Gloucester,55641K
Gloucester City Council,23UE,Cemeteries,HC300,Routine R And M - Vehicles,4011,Diesel,06/11/2014,393244,85,NET,Garden Machinery Gloucester,55641K
Gloucester City Council,23UE,Cemeteries,HC300,Routine R And M - Vehicles,4011,Ferris,06/11/2014,393243,214.89,NET,Garden Machinery Gloucester,55641K
Gloucester City Council,23UE,Cemeteries,HC300,Routine R And M - Vehicles,4011,Fuel Can,06/11/2014,393242,118.92,NET,Garden Machinery Gloucester,55641K
Gloucester City Council,23UE,Cemeteries,HC300,Routine R And M - Vehicles,4011,Oil,06/11/2014,393280,491.99,NET,Garden Machinery Gloucester,55641K
Gloucester City Council,23UE,REDACTED,REDACTED,REDACTED,REDACTED,REDACTED,06/11/2014,REDACTED,640,NET,REDACTED,REDACTED
Gloucester City Council,23UE,Client Revs & Bens Contract,RT240,Legal Fees,5731,Professional Fees,06/11/2014,393283,1200,NET,No 5 Chambers,02350X
Gloucester City Council,23UE,Contact Centre,RB300,Basic Pay -Admin /Prof Staff,2601,Temporary Staff w/e 19/10/2014,06/11/2014,393295,814,NET,Cps Anystaff Recruitment Ltd,13945D
Gloucester City Council,23UE,Contact Centre,RB300,Basic Pay -Admin /Prof Staff,2601,Temporary Staff w/e 26/10/2014,06/11/2014,393296,599.5,NET,Cps Anystaff Recruitment Ltd,13945D
Gloucester City Council,23UE,Council Streetcare Team,HI101,Maint Of Grounds - General,3030,Matson Rugby Club 22/10 & 23/10 2014,06/11/2014,393272,960,NET,Three Counties Drain Service,44033V
Gloucester City Council,23UE,Docks Complex - Services,RB100,Cleaning Materials,3600,Cleaning Materials,06/11/2014,393301,72.63,NET,Core Hygiene Ltd,03885P
Gloucester City Council,23UE,Electrical Investigatory Works,RY142,Capital Fire Equipment,0016,Inspection 26/09/14,06/11/2014,392548,60,CAP,A & E Fire Equipment Limited,54289L
Gloucester City Council,23UE,General Works Fund,RY203,Int On Purch Cost -Land,0003,Temporary Staff w/e 19/10/2014,06/11/2014,393111,199.5,CAP,Find The Engineer Recruitment Ltd*,12977Z
Gloucester City Council,23UE,Guildhall Digital Cinema,LY154,Contract Payments,0020,Digital Cinema,06/11/2014,393265,1793,CAP,A.J.Smith (Satellite)Ltd,14988Z
Gloucester City Council,23UE,REDACTED,REDACTED,REDACTED,REDACTED,REDACTED,06/11/2014,REDACTED,270,NET,REDACTED,REDACTED
Gloucester City Council,23UE,REDACTED,REDACTED,REDACTED,REDACTED,REDACTED,06/11/2014,REDACTED,350,NET,REDACTED,REDACTED
Gloucester City Council,23UE,Investment Property,RB500,General Repair/Maint Buildings,3000,Attendance fee 20/10/2014,06/11/2014,393326,126.54,NET,A & E Fire Equipment Limited,54289L
Gloucester City Council,23UE,Investment Property,RB500,General Repair/Maint Buildings,3000,Engineer 11/09/2014,06/11/2014,393325,60,NET,Micro-Vision Fire And Security Ltd,08581R
Gloucester City Council,23UE,Investment Property,RB500,Lift Maintenance,3051,Stairiser,06/11/2014,393317,187.51,NET,Stannah Lift Services Ltd,41700C
Gloucester City Council,23UE,Investment Property,RB500,Repair/Maint Of Fixed Plant,3006,GUILDHALL,06/11/2014,387496,184.01,NET,Hewer Facilities Mgt Ltd,05232A
Gloucester City Council,23UE,Land Searches,RO300,Fees For Services Received,5350,Land Charges July- September 2014,06/11/2014,393101,7673.15,NET,Gloucestershire County Council,18650D
Gloucester City Council,23UE,Postal Services,RS120,Postages,5400,Post 17/10 - 23/10 2014,06/11/2014,393347,1109.74,NET,Royal Mail S.Wales & South West,35830S
Gloucester City Council,23UE,Stationery Services,RS150,Stationery,5302,Paper,06/11/2014,393271,451,NET,Premier Paper Group Ltd,09166Y
Gloucester City Council,23UE,Summer Festival,LT300,Charges For Services,9300,First Aid Cover 02/08/2014,06/11/2014,393315,342,NET,St John Ambulance*,03597Y
Gloucester City Council,23UE,Tic Theatre Ticket Sales,LT107,Materials For Sale,5080,Ticket Sales 'Tower Talks' 2014,06/11/2014,393400,26,NET,Gloucester Civic Trust(St Michaels Tower),07484Z
Gloucester City Council,23UE,Tic Theatre Ticket Sales,LT107,Other Minor Income,9900,Ticket Sales 'Tower Talks' 2014,06/11/2014,393400,-0.5,NET,Gloucester Civic Trust(St Michaels Tower),07484Z
Gloucester City Council,23UE,Tic Theatre Ticket Sales,LT107,Sale Of Goods And Services,9230,Ticket Sales 'Tower Talks' 2014,06/11/2014,393400,-1.08,NET,Gloucester Civic Trust(St Michaels Tower),07484Z
Gloucester City Council,23UE,Tic Trading,LT110,Trade Refuse Sacks,5040,Trade Sacks,06/11/2014,393348,1974.9,NET,Enterprise (Aol) Ltd,06695G
Gloucester City Council,23UE,Tourism Marketing,LT100,Advertising And Publicity,5702,Victorian Market Nov 2014,06/11/2014,393312,325,NET,Gourmet Food Markets T/A Great Taste Markets,15038E
Gloucester City Council,23UE,Tourism Marketing,LT100,Window Cleaning,3610,Monthly Window Cleaning,06/11/2014,393313,12,NET,Interserve Fs (Uk) Limited,00442K
Gloucester City Council,23UE,Vehicles,RS140,Basic Pay - Cleaners,2401,Fuel,06/11/2014,393337,210.93,NET,Allstar Business Solutions Ltd (Arval),06594A
Gloucester City Council,23UE,2 Albion Cottages,RB546,General Repair/Maint Buildings,3000,Repair Works,07/11/2014,393437,28.44,NET,Rf Gardiner Limited,12299B
Gloucester City Council,23UE,Barbican House,RB506,General Repair/Maint Buildings,3000,Repair Works,07/11/2014,393427,188.1,NET,Rf Gardiner Limited,12299B
Gloucester City Council,23UE,Barbican House,RB506,General Repair/Maint Buildings,3000,Repair Works,07/11/2014,393446,615.31,NET,Rf Gardiner Limited,12299B
Gloucester City Council,23UE,Bus Station,RB400,General Repair/Maint Buildings,3000,Repair Works,07/11/2014,393447,39.61,NET,Rf Gardiner Limited,12299B
Gloucester City Council,23UE,Bus Station,RB400,General Repair/Maint Buildings,3000,Repair Works,07/11/2014,393452,19.08,NET,Rf Gardiner Limited,12299B
Gloucester City Council,23UE,Cctv Revenue Budget,FP501,Security Equipment Serv/Repair,3038,"Mainenance, CCTV System",07/11/2014,393297,1726.67,NET,Quadrant Security Group Ltd,05109A
Gloucester City Council,23UE,Cemeteries,HC300,Operational Materials,5070,Repair Works,07/11/2014,393423,288.46,NET,Rf Gardiner Limited,12299B
Gloucester City Council,23UE,Council Streetcare Team,HI101,General Repair/Maint Buildings,3000,Repair Works,07/11/2014,393433,184.51,NET,Rf Gardiner Limited,12299B
Gloucester City Council,23UE,Council Streetcare Team,HI101,General Repair/Maint Buildings,3000,Repair Works,07/11/2014,393435,48.54,NET,Rf Gardiner Limited,12299B
Gloucester City Council,23UE,Council Streetcare Team,HI101,General Repair/Maint Buildings,3000,Repair Works,07/11/2014,393462,32.84,NET,Rf Gardiner Limited,12299B
Gloucester City Council,23UE,Countryside Unit,LP201,Maint Of Grounds - General,3030,Repair Works,07/11/2014,393408,308.89,NET,Rf Gardiner Limited,12299B
Gloucester City Council,23UE,Docks Complex - Services,RB100,General Repair/Maint Buildings,3000,Repair Works,07/11/2014,393406,21.3,NET,Rf Gardiner Limited,12299B
Gloucester City Council,23UE,Docks Complex - Services,RB100,General Repair/Maint Buildings,3000,Repair Works,07/11/2014,393411,131.81,NET,Rf Gardiner Limited,12299B
Gloucester City Council,23UE,Docks Complex - Services,RB100,General Repair/Maint Buildings,3000,Repair Works,07/11/2014,393426,24.63,NET,Rf Gardiner Limited,12299B
Gloucester City Council,23UE,Docks Complex - Services,RB100,General Repair/Maint Buildings,3000,Repair Works,07/11/2014,393428,59.84,NET,Rf Gardiner Limited,12299B
Gloucester City Council,23UE,Docks Complex - Services,RB100,General Repair/Maint Buildings,3000,Repair Works,07/11/2014,393438,19.08,NET,Rf Gardiner Limited,12299B
Gloucester City Council,23UE,Eastgate Rooftop Emerg Works,RY159,Contract Payments,0020,Repair Works,07/11/2014,393424,90.31,CAP,Rf Gardiner Limited,12299B
Gloucester City Council,23UE,Electrical Investigatory Works,RY142,Capital Fire Alarms,0025,Quarterley Inspection,07/11/2014,392142,55,CAP,A & E Fire Equipment Limited,54289L
Gloucester City Council,23UE,Events,LT410,Bank Charges And Adjustments,5950,"Firework Display, 08/11/2014",07/11/2014,393502,7000,NET,Merlin Fireworks Ltd,15045H
Gloucester City Council,23UE,REDACTED,REDACTED,REDACTED,REDACTED,REDACTED,07/11/2014,REDACTED,1000,NET,REDACTED,REDACTED
Gloucester City Council,23UE,REDACTED,REDACTED,REDACTED,REDACTED,REDACTED,07/11/2014,REDACTED,62.5,NET,REDACTED,REDACTED
Gloucester City Council,23UE,REDACTED,REDACTED,REDACTED,REDACTED,REDACTED,07/11/2014,REDACTED,270,NET,REDACTED,REDACTED
Gloucester City Council,23UE,REDACTED,REDACTED,REDACTED,REDACTED,REDACTED,07/11/2014,REDACTED,364.6,NET,REDACTED,REDACTED
Gloucester City Council,23UE,REDACTED,REDACTED,REDACTED,REDACTED,REDACTED,07/11/2014,REDACTED,270,NET,REDACTED,REDACTED
Gloucester City Council,23UE,Investment Property,RB500,General Repair/Maint Buildings,3000,Repair Works,07/11/2014,393404,73.89,NET,Rf Gardiner Limited,12299B
Gloucester City Council,23UE,Investment Property,RB500,General Repair/Maint Buildings,3000,Repair Works,07/11/2014,393409,65.7,NET,Rf Gardiner Limited,12299B
Gloucester City Council,23UE,Investment Property,RB500,General Repair/Maint Buildings,3000,Repair Works,07/11/2014,393410,65.7,NET,Rf Gardiner Limited,12299B
Gloucester City Council,23UE,Investment Property,RB500,General Repair/Maint Buildings,3000,Repair Works,07/11/2014,393412,39.42,NET,Rf Gardiner Limited,12299B
Gloucester City Council,23UE,Investment Property,RB500,General Repair/Maint Buildings,3000,Repair Works,07/11/2014,393413,74.65,NET,Rf Gardiner Limited,12299B
Gloucester City Council,23UE,Investment Property,RB500,General Repair/Maint Buildings,3000,Repair Works,07/11/2014,393414,192.96,NET,Rf Gardiner Limited,12299B
Gloucester City Council,23UE,Investment Property,RB500,General Repair/Maint Buildings,3000,Repair Works,07/11/2014,393415,83.28,NET,Rf Gardiner Limited,12299B
Gloucester City Council,23UE,Investment Property,RB500,General Repair/Maint Buildings,3000,Repair Works,07/11/2014,393417,155.42,NET,Rf Gardiner Limited,12299B
Gloucester City Council,23UE,Investment Property,RB500,General Repair/Maint Buildings,3000,Repair Works,07/11/2014,393421,170.62,NET,Rf Gardiner Limited,12299B
Gloucester City Council,23UE,Investment Property,RB500,General Repair/Maint Buildings,3000,Repair Works,07/11/2014,393422,38.16,NET,Rf Gardiner Limited,12299B
Gloucester City Council,23UE,Investment Property,RB500,General Repair/Maint Buildings,3000,Repair Works,07/11/2014,393425,65.84,NET,Rf Gardiner Limited,12299B
Gloucester City Council,23UE,Investment Property,RB500,General Repair/Maint Buildings,3000,Repair Works,07/11/2014,393429,91.98,NET,Rf Gardiner Limited,12299B
Gloucester City Council,23UE,Investment Property,RB500,General Repair/Maint Buildings,3000,Repair Works,07/11/2014,393430,21.24,NET,Rf Gardiner Limited,12299B
Gloucester City Council,23UE,Investment Property,RB500,General Repair/Maint Buildings,3000,Repair Works,07/11/2014,393431,588,NET,Rf Gardiner Limited,12299B
Gloucester City Council,23UE,Investment Property,RB500,General Repair/Maint Buildings,3000,Repair Works,07/11/2014,393432,584.75,NET,Rf Gardiner Limited,12299B
Gloucester City Council,23UE,Investment Property,RB500,General Repair/Maint Buildings,3000,Repair Works,07/11/2014,393434,83.74,NET,Rf Gardiner Limited,12299B
Gloucester City Council,23UE,Investment Property,RB500,General Repair/Maint Buildings,3000,Repair Works,07/11/2014,393436,52.56,NET,Rf Gardiner Limited,12299B
Gloucester City Council,23UE,Investment Property,RB500,General Repair/Maint Buildings,3000,Repair Works,07/11/2014,393439,38.16,NET,Rf Gardiner Limited,12299B
Gloucester City Council,23UE,Investment Property,RB500,General Repair/Maint Buildings,3000,Repair Works,07/11/2014,393440,21.24,NET,Rf Gardiner Limited,12299B
Gloucester City Council,23UE,Investment Property,RB500,General Repair/Maint Buildings,3000,Repair Works,07/11/2014,393442,282.68,NET,Rf Gardiner Limited,12299B
Gloucester City Council,23UE,Investment Property,RB500,General Repair/Maint Buildings,3000,Repair Works,07/11/2014,393448,109.18,NET,Rf Gardiner Limited,12299B
Gloucester City Council,23UE,Investment Property,RB500,General Repair/Maint Buildings,3000,Repair Works,07/11/2014,393449,49.26,NET,Rf Gardiner Limited,12299B
Gloucester City Council,23UE,Investment Property,RB500,General Repair/Maint Buildings,3000,Repair Works,07/11/2014,393450,504.12,NET,Rf Gardiner Limited,12299B
Gloucester City Council,23UE,Investment Property,RB500,General Repair/Maint Buildings,3000,Repair Works,07/11/2014,393451,19.08,NET,Rf Gardiner Limited,12299B
Gloucester City Council,23UE,Investment Property,RB500,General Repair/Maint Buildings,3000,Repair Works,07/11/2014,393454,188.88,NET,Rf Gardiner Limited,12299B
Gloucester City Council,23UE,Investment Property,RB500,General Repair/Maint Buildings,3000,Repair Works,07/11/2014,393461,8.3,NET,Rf Gardiner Limited,12299B
Gloucester City Council,23UE,Investment Property,RB500,General Repair/Maint Buildings,3000,Repair Works,07/11/2014,393463,98.55,NET,Rf Gardiner Limited,12299B
Gloucester City Council,23UE,Investment Property,RB500,General Repair/Maint Buildings,3000,Repair Works,07/11/2014,393466,32.84,NET,Rf Gardiner Limited,12299B
Gloucester City Council,23UE,Investment Property,RB500,General Repair/Maint Buildings,3000,Repair Works,07/11/2014,393468,715.09,NET,Rf Gardiner Limited,12299B
Gloucester City Council,23UE,Kings Sq Paving Emerg Works,RY161,Contract Payments,0020,Repair Works,07/11/2014,393405,24.63,CAP,Rf Gardiner Limited,12299B
Gloucester City Council,23UE,Kings Sq Paving Emerg Works,RY161,Contract Payments,0020,Repair Works,07/11/2014,393416,52.56,CAP,Rf Gardiner Limited,12299B
Gloucester City Council,23UE,Kings Sq Paving Emerg Works,RY161,Contract Payments,0020,Repair Works,07/11/2014,393441,152.05,CAP,Rf Gardiner Limited,12299B
Gloucester City Council,23UE,Kings Sq Paving Emerg Works,RY161,Contract Payments,0020,Repair Works,07/11/2014,393443,320.82,CAP,Rf Gardiner Limited,12299B
Gloucester City Council,23UE,Kings Sq Paving Emerg Works,RY161,Contract Payments,0020,Repair Works,07/11/2014,393445,28.74,CAP,Rf Gardiner Limited,12299B
Gloucester City Council,23UE,Kings Sq Paving Emerg Works,RY161,Contract Payments,0020,Repair Works,07/11/2014,393455,207.79,CAP,Rf Gardiner Limited,12299B
Gloucester City Council,23UE,Kings Sq Paving Emerg Works,RY161,Contract Payments,0020,Repair Works,07/11/2014,393464,57.47,CAP,Rf Gardiner Limited,12299B
Gloucester City Council,23UE,Legal Services,RS200,Basic Pay - Temporary Staff,2751,Temporary Staff w/e 26/10/2014,07/11/2014,393303,1549.93,NET,Venn Group Ltd,04339P
Gloucester City Council,23UE,Legal Services,RS200,Basic Pay - Temporary Staff,2751,Temporary Staff w/e 26/10/2014,07/11/2014,393287,487.29,NET,Premiere Employment Ltd,55468Z
Gloucester City Council,23UE,Northwarehouse,RB150,General Repair/Maint Buildings,3000,Repair Works,07/11/2014,393460,73.89,NET,Rf Gardiner Limited,12299B
Gloucester City Council,23UE,Off Street Car Parks,PP110,General Repair/Maint Buildings,3000,Repair Works,07/11/2014,393403,107.87,NET,Rf Gardiner Limited,12299B
Gloucester City Council,23UE,Off Street Car Parks,PP110,General Repair/Maint Buildings,3000,Repair Works,07/11/2014,393407,30.04,NET,Rf Gardiner Limited,12299B
Gloucester City Council,23UE,Off Street Car Parks,PP110,General Repair/Maint Buildings,3000,Repair Works,07/11/2014,393420,16.42,NET,Rf Gardiner Limited,12299B
Gloucester City Council,23UE,Off Street Car Parks,PP110,General Repair/Maint Buildings,3000,Repair Works,07/11/2014,393444,127.91,NET,Rf Gardiner Limited,12299B
Gloucester City Council,23UE,Off Street Car Parks,PP110,General Repair/Maint Buildings,3000,Repair Works,07/11/2014,393453,162.33,NET,Rf Gardiner Limited,12299B
Gloucester City Council,23UE,Off Street Car Parks,PP110,General Repair/Maint Buildings,3000,Repair Works,07/11/2014,393456,677.48,NET,Rf Gardiner Limited,12299B
Gloucester City Council,23UE,Off Street Car Parks,PP110,General Repair/Maint Buildings,3000,Repair Works,07/11/2014,393457,87,NET,Rf Gardiner Limited,12299B
Gloucester City Council,23UE,Off Street Car Parks,PP110,General Repair/Maint Buildings,3000,Repair Works,07/11/2014,393458,32.49,NET,Rf Gardiner Limited,12299B
Gloucester City Council,23UE,Off Street Car Parks,PP110,General Repair/Maint Buildings,3000,Repair Works,07/11/2014,393459,22.58,NET,Rf Gardiner Limited,12299B
Gloucester City Council,23UE,Off Street Car Parks,PP110,General Repair/Maint Buildings,3000,Repair Works,07/11/2014,393465,132.03,NET,Rf Gardiner Limited,12299B
Gloucester City Council,23UE,Off Street Car Parks,PP110,General Repair/Maint Buildings,3000,Repair Works,07/11/2014,393467,16.42,NET,Rf Gardiner Limited,12299B
Gloucester City Council,23UE,Shopmobility,PE200,Cleaning Materials,3600,Medical Waste Service Nov 2014,07/11/2014,393324,7.11,NET,Ocs Group Uk Limited T/A Cannon,06506A
Gloucester City Council,23UE,The Fleece,RB530,General Repair/Maint Buildings,3000,Repair Works,07/11/2014,393469,303.77,NET,Rf Gardiner Limited,12299B
Gloucester City Council,23UE,Guildhall Cinema,LA202,Fees For Services Received,5350,Monthly Film Charge,10/11/2014,391226,214.24,NET,Nft Logistics Ltd,13505N
Gloucester City Council,23UE,REDACTED,REDACTED,REDACTED,REDACTED,REDACTED,10/11/2014,REDACTED,1.6,NET,REDACTED,REDACTED
Gloucester City Council,23UE,Tic Theatre Ticket Sales,LT107,Materials For Sale,5080,REMEMBRANCE DAY 2014,10/11/2014,393536,280,NET,Royal British Legion Glos City Branch,05043F
Gloucester City Council,23UE,REDACTED,REDACTED,REDACTED,REDACTED,REDACTED,10/11/2014,REDACTED,40,NET,REDACTED,REDACTED
Gloucester City Council,23UE,Tic Theatre Ticket Sales,LT107,Materials For Sale,5080,MACBETH,10/11/2014,393535,786,NET,Tyger Productions,14645K
Gloucester City Council,23UE,Tic Theatre Ticket Sales,LT107,Other Minor Income,9900,MACBETH,10/11/2014,393535,-10.5,NET,Tyger Productions,14645K
Gloucester City Council,23UE,Tic Theatre Ticket Sales,LT107,Sale Of Goods And Services,9230,REMEMBRANCE DAY 2014,10/11/2014,393536,-11.67,NET,Royal British Legion Glos City Branch,05043F
Gloucester City Council,23UE,REDACTED,REDACTED,REDACTED,REDACTED,REDACTED,10/11/2014,REDACTED,-1.67,NET,REDACTED,REDACTED
Gloucester City Council,23UE,Tic Theatre Ticket Sales,LT107,Sale Of Goods And Services,9230,MACBETH,10/11/2014,393535,-65.5,NET,Tyger Productions,14645K
Gloucester City Council,23UE,Tic Trading,LT110,Materials For Sale,5080,Coat of arms badges,10/11/2014,393330,52.5,NET,Badger Badges,56531J
Gloucester City Council,23UE,Townscape Heritage Initiative,LY145,Legal/Survey Fees -Land,0002,WOODCHESTER MANSION TALK & TOUR,10/11/2014,393539,280,CAP,Bourne Masonry,15013X
Gloucester City Council,23UE,Asset Management,RS300,Basic Pay - Temporary Staff,2751,OCT 2014,11/11/2014,393596,7075,NET,Ardley Associates,09369F
Gloucester City Council,23UE,REDACTED,REDACTED,REDACTED,REDACTED,REDACTED,11/11/2014,REDACTED,3360,NET,REDACTED,REDACTED
Gloucester City Council,23UE,Cemeteries,HC300,Basic Pay - Temporary Staff,2751,STAFF OCT 2014,11/11/2014,393550,4263.74,NET,Anderson Recruitment Ltd,14646H
Gloucester City Council,23UE,Cemeteries,HC300,Operational Materials,5070,CAN,11/11/2014,393544,113.76,NET,Spaldings,48759Y
Gloucester City Council,23UE,Cemeteries,HC300,Routine R And M - Vehicles,4011,CALL OUT,11/11/2014,393561,65,NET,Garden Machinery Gloucester,55641K
Gloucester City Council,23UE,Crematorium,HC200,General Repair/Maint Buildings,3000,PROBES,11/11/2014,393560,15,NET,Facultatieve Technologies Ltd,51210H
Gloucester City Council,23UE,Crematorium,HC200,Memorial Plaques,5053,PLAQUES,11/11/2014,393571,631.4,NET,Arkell & Hurcombe,59812T
Gloucester City Council,23UE,Crematorium,HC200,Repair/Maint Of Fixed Plant,3006,PROBES,11/11/2014,393560,590.24,NET,Facultatieve Technologies Ltd,51210H
Gloucester City Council,23UE,Crematorium,HC200,"Seeds, Trees, Plants, Shrubs",3028,TREES,11/11/2014,393540,15.99,NET,Highfield Garden Centres Ltd,48436C
Gloucester City Council,23UE,Development Management,PT200,Operational Equipment <5000,5012,CHAIRS,11/11/2014,393572,1240,NET,Furniture@Work Ltd,01124U
Gloucester City Council,23UE,Docks Complex - Castlemeads Cp,RB210,Contracted Services,6970,GC ENFORCEMENT,11/11/2014,393552,3100.58,NET,Apcoa Parking (Uk) Ltd,09954M
Gloucester City Council,23UE,Docks Complex - Castlemeads Cp,RB210,Contracted Services,6970,GC Fixed Overhead,11/11/2014,392129,773.48,NET,Apcoa Parking (Uk) Ltd,09954M
Gloucester City Council,23UE,Docks Complex - Castlemeads Cp,RB210,Contracted Services,6970,GC P&D & Head Cams,11/11/2014,392132,198.27,NET,Apcoa Parking (Uk) Ltd,09954M
Gloucester City Council,23UE,Docks Complex - Castlemeads Cp,RB210,Contracted Services,6970,GC Variable Enforcement,11/11/2014,392130,1914.9,NET,Apcoa Parking (Uk) Ltd,09954M
Gloucester City Council,23UE,Docks Complex - Castlemeads Cp,RB210,Contracted Services,6970,GC Vehicles,11/11/2014,392131,437.08,NET,Apcoa Parking (Uk) Ltd,09954M
Gloucester City Council,23UE,Docks Complex - Castlemeads Cp,RB210,Contracted Services,6970,GC VEHICLES,11/11/2014,393553,374.26,NET,Apcoa Parking (Uk) Ltd,09954M
Gloucester City Council,23UE,Docks Complex - Catering Servs,RB110,Catering Provisions -Food,5110,Food w/e 02/11/2014,11/11/2014,393285,71.11,NET,Janes Pantry,24500W
Gloucester City Council,23UE,Docks Complex - Services,RB100,Repair/Maint Of Fixed Plant,3006,HERBERT WAREHOUSE,11/11/2014,393573,215.32,NET,Hewer Facilities Mgt Ltd,05232A
Gloucester City Council,23UE,Electrical Investigatory Works,RY142,Contract Payments,0020,extinguisher tests,11/11/2014,388663,94.62,CAP,A & E Fire Equipment Limited,54289L
Gloucester City Council,23UE,Environmental Planning,LM340,Other Minor Supplies Services,5590,CHAIR,11/11/2014,393543,155,NET,Furniture@Work Ltd,01124U
Gloucester City Council,23UE,General Drainage Works,PY241,Contract Payments,0020,ST PETERS SCHOOL,11/11/2014,393549,1200,CAP,Rj Contracting (Environmental) Ltd,07429H
Gloucester City Council,23UE,REDACTED,REDACTED,REDACTED,REDACTED,REDACTED,11/11/2014,REDACTED,100,NET,REDACTED,REDACTED
Gloucester City Council,23UE,REDACTED,REDACTED,REDACTED,REDACTED,REDACTED,11/11/2014,REDACTED,1338.75,NET,REDACTED,REDACTED
Gloucester City Council,23UE,REDACTED,REDACTED,REDACTED,REDACTED,REDACTED,11/11/2014,REDACTED,100,NET,REDACTED,REDACTED
Gloucester City Council,23UE,Homelessness,CH120,Basic Pay - Temporary Staff,2751,Temporary Staff W/E 02/11/14,11/11/2014,393569,456,NET,Building Recruitment Company Ltd,55385E
Gloucester City Council,23UE,Homelessness,CH120,Basic Pay - Temporary Staff,2751,Temporary Staff w/e 12/10/2014,11/11/2014,392937,703,NET,Building Recruitment Company Ltd,55385E
Gloucester City Council,23UE,Homelessness,CH120,Basic Pay - Temporary Staff,2751,Temporary Staff w/e 19/10/2014,11/11/2014,393109,655.5,NET,Building Recruitment Company Ltd,55385E
Gloucester City Council,23UE,REDACTED,REDACTED,REDACTED,REDACTED,REDACTED,11/11/2014,REDACTED,484.6,NET,REDACTED,REDACTED
Gloucester City Council,23UE,REDACTED,REDACTED,REDACTED,REDACTED,REDACTED,11/11/2014,REDACTED,500,NET,REDACTED,REDACTED
Gloucester City Council,23UE,Human Resources,EH100,Fees For Services Received,5350,ASSESSMENT SERVICES,11/11/2014,393575,5028.5,NET,Informed Assessment,14993G
Gloucester City Council,23UE,Human Resources,EH100,Fees For Services Received,5350,AUG 2014,11/11/2014,393547,250.42,NET,Industrial Medical & Safety Services Ltd,10668L
Gloucester City Council,23UE,Human Resources,EH100,Fees For Services Received,5350,CONSULTING FEES,11/11/2014,393565,875,NET,Hay Group Management  Ltd,52501H
Gloucester City Council,23UE,Human Resources,EH100,Fees For Services Received,5350,Payroll Charges August 2014,11/11/2014,391040,2715.39,NET,Gloucestershire County Council,18650D
Gloucester City Council,23UE,Human Resources,EH100,Fees For Services Received,5350,Payroll charges September 2014,11/11/2014,391787,2633.74,NET,Gloucestershire County Council,18650D
Gloucester City Council,23UE,Human Resources,EH100,Fees For Services Received,5350,Payroll Monthly Charges June 2014,11/11/2014,387268,3302.94,NET,Gloucestershire County Council,18650D
Gloucester City Council,23UE,Human Resources,EH100,Fees For Services Received,5350,TRAINEES,11/11/2014,393579,1340,NET,The Gold Standard,56141C
Gloucester City Council,23UE,Human Resources,EH100,Fees For Services Received,5350,TRAINEES,11/11/2014,393580,2175,NET,The Gold Standard,56141C
Gloucester City Council,23UE,Human Resources,EH100,Training Course Fees,5367,HR STAFF,11/11/2014,393578,2315,NET,Gloucestershire College,06835B
Gloucester City Council,23UE,National Express,LT105,Materials For Sale,5080,SALES OCT 2014,11/11/2014,393538,12813.6,NET,National Express Ltd,31455K
Gloucester City Council,23UE,National Express,LT105,Sale Of Goods And Services,9230,SALES OCT 2014,11/11/2014,393538,-1224.66,NET,National Express Ltd,31455K
Gloucester City Council,23UE,Off Street Car Parks,PP110,Contracted Services,6970,GC FIXED OH,11/11/2014,393557,479.34,NET,Apcoa Parking (Uk) Ltd,09954M
Gloucester City Council,23UE,Off Street Car Parks,PP110,Contracted Services,6970,GC Other Items,11/11/2014,392133,10528.16,NET,Apcoa Parking (Uk) Ltd,09954M
Gloucester City Council,23UE,Off Street Car Parks,PP110,Contracted Services,6970,GC OTHER ITEMS,11/11/2014,393559,11089.74,NET,Apcoa Parking (Uk) Ltd,09954M
Gloucester City Council,23UE,Off Street Car Parks,PP110,Contracted Services,6970,GC P&D & Head Cams,11/11/2014,392132,1439.34,NET,Apcoa Parking (Uk) Ltd,09954M
Gloucester City Council,23UE,Off Street Car Parks,PP110,Contracted Services,6970,HEAD CAMS,11/11/2014,393558,1997.8,NET,Apcoa Parking (Uk) Ltd,09954M
Gloucester City Council,23UE,Solace Project,FP843,Other Minor Supplies Services,5590,Oct ASB Salary,11/11/2014,393291,3250,NET,Gloucester City Homes,05244T
Gloucester City Council,23UE,Waterwells Park And Ride,PJ120,Contracted Services,6970,GC FIXED OH,11/11/2014,393557,294.14,NET,Apcoa Parking (Uk) Ltd,09954M
Gloucester City Council,23UE,Waterwells Park And Ride,PJ120,Contracted Services,6970,GC P&D & Head Cams,11/11/2014,392132,341.44,NET,Apcoa Parking (Uk) Ltd,09954M
Gloucester City Council,23UE,Waterwells Park And Ride,PJ120,Contracted Services,6970,GC VEHICLES,11/11/2014,393553,62.82,NET,Apcoa Parking (Uk) Ltd,09954M
Gloucester City Council,23UE,City Museum Catering,LM202,Catering Provisions -Food,5110,Food,12/11/2014,393725,70.83,NET,Woodward Foodservice,10714F
Gloucester City Council,23UE,City Museum Catering,LM202,Catering Provisions -Food,5110,Milk,12/11/2014,393726,4.96,NET,Total Produce Gloucester,12645E
Gloucester City Council,23UE,City Museum Catering,LM202,Catering Provisions -Food,5110,Milk,12/11/2014,393727,4.96,NET,Total Produce Gloucester,12645E
Gloucester City Council,23UE,City Museum Catering,LM202,Catering Provisions -Food,5110,Milk,12/11/2014,393728,4.96,NET,Total Produce Gloucester,12645E
Gloucester City Council,23UE,City Museum Catering,LM202,Catering Provisions -Food,5110,Milk,12/11/2014,393729,4.96,NET,Total Produce Gloucester,12645E
Gloucester City Council,23UE,City Museum Catering,LM202,Catering Provisions -Food,5110,Milk,12/11/2014,393730,4.96,NET,Total Produce Gloucester,12645E
Gloucester City Council,23UE,Docks Complex - Services,RB100,Lift Maintenance,3051,HERBERT WAREHOUSE,12/11/2014,393555,95.72,NET,Pickerings Europe Ltd*,58816U
Gloucester City Council,23UE,Docks Complex - Services,RB100,Repair/Maint Of Fixed Plant,3006,NORTH WAREHOUSE,12/11/2014,393556,100,NET,Hewer Facilities Mgt Ltd,05232A
Gloucester City Council,23UE,Guildhall Bar And Caf�,LA210,Catering Provisions -Food,5110,Food,12/11/2014,393738,171.6,NET,Woodward Foodservice,10714F
Gloucester City Council,23UE,Guildhall Bar And Caf�,LA210,Catering Provisions -Food,5110,Food,12/11/2014,393739,89.22,NET,Woodward Foodservice,10714F
Gloucester City Council,23UE,Guildhall Bar And Caf�,LA210,Catering Provisions -Food,5110,Milk,12/11/2014,393731,4.96,NET,Total Produce Gloucester,12645E
Gloucester City Council,23UE,Guildhall Bar And Caf�,LA210,Catering Provisions -Food,5110,Milk,12/11/2014,393732,4.96,NET,Total Produce Gloucester,12645E
Gloucester City Council,23UE,Guildhall Bar And Caf�,LA210,Catering Provisions -Food,5110,Milk,12/11/2014,393733,4.96,NET,Total Produce Gloucester,12645E
Gloucester City Council,23UE,Guildhall Bar And Caf�,LA210,Catering Provisions -Food,5110,Milk,12/11/2014,393734,4.96,NET,Total Produce Gloucester,12645E
Gloucester City Council,23UE,Guildhall Bar And Caf�,LA210,Catering Provisions -Food,5110,Milk,12/11/2014,393735,4.96,NET,Total Produce Gloucester,12645E
Gloucester City Council,23UE,Guildhall Bar And Caf�,LA210,Catering Provisions -Food,5110,Milk,12/11/2014,393736,4.96,NET,Total Produce Gloucester,12645E
Gloucester City Council,23UE,Guildhall Bar And Caf�,LA210,Catering Provisions -Food,5110,Milk,12/11/2014,393737,4.96,NET,Total Produce Gloucester,12645E
Gloucester City Council,23UE,REDACTED,REDACTED,REDACTED,REDACTED,REDACTED,12/11/2014,REDACTED,525,NET,REDACTED,REDACTED
Gloucester City Council,23UE,Human Resources,EH100,Fees For Services Received,5350,SEPT 2014,12/11/2014,393548,420.42,NET,Industrial Medical & Safety Services Ltd,10668L
Gloucester City Council,23UE,Procurement Management,RP100,Vocational Training,2970,WEBEX TRAINING,12/11/2014,393554,400,NET,Due North Ltd,12447L
Gloucester City Council,23UE,Registration Of Electors,RS400,Postages,5400,Post,12/11/2014,393721,774.98,NET,Royal Mail S.Wales & South West,35830S
Gloucester City Council,23UE,Stationery Services,RS150,Stationery,5302,Stationary,12/11/2014,393088,30.35,NET,Lyreco Uk Ltd,11746G
Gloucester City Council,23UE,Stationery Services,RS150,Stationery,5302,Stationary,12/11/2014,393091,72.91,NET,Lyreco Uk Ltd,11746G
Gloucester City Council,23UE,Stationery Services,RS150,Stationery,5302,Stationary,12/11/2014,393311,212.92,NET,Lyreco Uk Ltd,11746G
Gloucester City Council,23UE,The Arbor,HC501,Catering Provisions -Food,5110,Food,12/11/2014,393742,593.83,NET,3663,55585U
Gloucester City Council,23UE,The Arbor,HC501,Catering Provisions -Food,5110,Food,12/11/2014,393743,19.32,NET,Total Produce Gloucester,12645E
Gloucester City Council,23UE,The Arbor,HC501,Catering Provisions -Food,5110,Food,12/11/2014,393744,25.34,NET,Total Produce Gloucester,12645E
Gloucester City Council,23UE,The Arbor,HC501,Catering Provisions -Food,5110,Food,12/11/2014,393745,35.68,NET,Total Produce Gloucester,12645E
Gloucester City Council,23UE,The Arbor,HC501,Catering Provisions -Food,5110,Food,12/11/2014,393746,20.93,NET,Total Produce Gloucester,12645E
Gloucester City Council,23UE,The Arbor,HC501,Catering Provisions -Food,5110,Food,12/11/2014,393747,91,NET,Total Produce Gloucester,12645E
Gloucester City Council,23UE,The Arbor,HC501,Catering Provisions -Food,5110,Food,12/11/2014,393748,21.11,NET,Total Produce Gloucester,12645E
Gloucester City Council,23UE,The Arbor,HC501,Catering Provisions -Food,5110,Food,12/11/2014,393749,14.78,NET,Total Produce Gloucester,12645E
Gloucester City Council,23UE,The Arbor,HC501,Catering Provisions -Food,5110,Food,12/11/2014,393750,20.8,NET,Total Produce Gloucester,12645E
Gloucester City Council,23UE,The Arbor,HC501,Catering Provisions -Food,5110,Food,12/11/2014,393752,22.57,NET,Total Produce Gloucester,12645E
Gloucester City Council,23UE,The Arbor,HC501,Catering Provisions -Food,5110,Food,12/11/2014,393766,472.83,NET,3663,55585U
Gloucester City Council,23UE,The Arbor,HC501,Catering Provisions -Food,5110,Food,12/11/2014,393767,33.12,NET,3663,55585U
Gloucester City Council,23UE,The Arbor,HC501,Catering Provisions -Food,5110,Food,12/11/2014,393768,183.67,NET,3663,55585U
Gloucester City Council,23UE,The Arbor,HC501,Other Minor Supplies Services,5590,Flowers,12/11/2014,393741,54.6,NET,Carols Florist,01274X
Gloucester City Council,23UE,Tic Trading,LT110,Materials For Sale,5080,GOODS FOR RESALE,12/11/2014,393570,261.52,NET,Elgate,11620G
Gloucester City Council,23UE,Blackfriars Catering,LA220,Catering Provisions -Liquor,5111,Liquor,13/11/2014,393714,733.47,NET,Cellar Supplies Cheltenham Ltd,01563L
Gloucester City Council,23UE,Business Transformation & Tech,RT700,Computer Hardware <5000,5420,Delivery charge inv: 41421,13/11/2014,388403,10,NET,Qual Technology,56512N
Gloucester City Council,23UE,Cemeteries,HC300,Maint Of Grounds - General,3030,Safety Boots,13/11/2014,393710,43.52,NET,Safpro Industrial Supply Co,39190W
Gloucester City Council,23UE,Cemeteries,HC300,Purch Vehicles/M. Plant <5000,4000,Uniforms,13/11/2014,393709,113,NET,Safpro Industrial Supply Co,39190W
Gloucester City Council,23UE,City Museum And Art Gallery,LM200,Uniforms,5201,Poloshirts,13/11/2014,392496,26.52,NET,Alexandra,50586R
Gloucester City Council,23UE,Civica It Contract,RT270,Contracted Services,6970,IT Services December 2014,13/11/2014,393282,47916.66,NET,Civica Uk Ltd,10841X
Gloucester City Council,23UE,Client Revs & Bens Contract,RT240,Bailiffs Fees,5368,VAT on fees collected,13/11/2014,393293,899.11,NET,Bristow & Sutor,05450M
Gloucester City Council,23UE,Client Revs & Bens Contract,RT240,Bailiffs Fees,5368,VAT on fees collected,13/11/2014,393294,169.42,NET,Bristow & Sutor,05450M
Gloucester City Council,23UE,Community Safety Projects,FP500,Basic Pay - Temporary Staff,2751,Temporart Staff w/e 24/10/2014,13/11/2014,393339,530.42,NET,Travail Employment Ltd,49371W
Gloucester City Council,23UE,Contact Centre,RB300,Basic Pay -Admin /Prof Staff,2601,Temporary Staff w/e 31/10/2014,13/11/2014,393718,287.1,NET,One To One Recruitment,04752H
Gloucester City Council,23UE,Contact Centre,RB300,Basic Pay -Admin /Prof Staff,2601,Temporary Steff w/e 31/10/2014,13/11/2014,393719,472.12,NET,One To One Recruitment,04752H
Gloucester City Council,23UE,Crematorium,HC200,Clothing,5200,Uniforms,13/11/2014,393709,38.18,NET,Safpro Industrial Supply Co,39190W
Gloucester City Council,23UE,Crematorium,HC200,Licences,5703,Annual Subscription,13/11/2014,393715,200,NET,Cemetry Managers Liaison Group,02627A
Gloucester City Council,23UE,Crematorium,HC200,National Assist Act Burial Exp,5593,Funeral charges,13/11/2014,393688,623,NET,Selim Smith & Co Funeral Directors,15156X
Gloucester City Council,23UE,Crematorium,HC200,Uniforms,5201,Uniforms,13/11/2014,393709,38.55,NET,Safpro Industrial Supply Co,39190W
Gloucester City Council,23UE,Docks Complex - Services,RB100,Service Charges,3020,City Museum Water Cooler,13/11/2014,390970,144,NET,Greenworks Solutions Ltd,05909G
Gloucester City Council,23UE,Docks Complex - Services,RB100,Service Charges,3020,Docks Service Charge Oct- Dec 2014,13/11/2014,393060,13028.75,NET,Gloucester Quays Management Ltd,13497K
Gloucester City Council,23UE,Docks Complex - Services,RB100,Service Charges,3020,Folk Museum Water Cooler,13/11/2014,390988,144,NET,Greenworks Solutions Ltd,05909G
Gloucester City Council,23UE,Environmental Planning,LM340,Fees For Services Received,5350,Works October 2014,13/11/2014,393712,3000,NET,Charlton Abbotts Forestry Ltd,14989X
Gloucester City Council,23UE,Financial Services,RT200,Consultants Fees,5349,Consultancy services October 2014,13/11/2014,393677,850,NET,Advanced Business Solutions,06072N
Gloucester City Council,23UE,Financial Services,RT200,Fees For Services Received,5350,CRN 2014-12,13/11/2014,393593,2950,NET,Civica Uk Ltd,10841X
Gloucester City Council,23UE,REDACTED,REDACTED,REDACTED,REDACTED,REDACTED,13/11/2014,REDACTED,50,NET,REDACTED,REDACTED
Gloucester City Council,23UE,Food Safety,HE100,Other Minor Supplies Services,5590,Laundry,13/11/2014,393740,18,NET,Iron Maidens,02180Y
Gloucester City Council,23UE,General Drainage Works,PY241,Contract Payments,0020,ST PETERS SCHOOL,13/11/2014,393541,4340,CAP,Rj Contracting (Environmental) Ltd,07429H
Gloucester City Council,23UE,General Drainage Works,PY241,Contract Payments,0020,ST PETERS SCHOOL,13/11/2014,393562,550,CAP,Rj Contracting (Environmental) Ltd,07429H
Gloucester City Council,23UE,General Drainage Works,PY241,Contract Payments,0020,Topographical Survey,13/11/2014,393299,445,CAP,Monument Geomatics,11065F
Gloucester City Council,23UE,Gl1 Emergency Works,RY160,Contract Payments,0020,Retetion Invoice,13/11/2014,393764,121.42,CAP,Central Roofing & Building Services Ltd,59480W
Gloucester City Council,23UE,Gloucester Guildhall,LA100,Maintenance Of Equipment,5030,Replacement Draw Cable,13/11/2014,393692,395,NET,Chris Hitchens Ltd,09558A
Gloucester City Council,23UE,Green Transport Policy,PJ130,Electric Car Charge,4030,Smart fortwo coupe,13/11/2014,393702,287.35,NET,Daimler Fleet Management,07828N
Gloucester City Council,23UE,Guildhall Events,LA200,Advertising And Publicity,5702,Advertisements Oct 2014,13/11/2014,393711,612.51,NET,Local World Ltd,08556P
Gloucester City Council,23UE,REDACTED,REDACTED,REDACTED,REDACTED,REDACTED,13/11/2014,REDACTED,1642.66,NET,REDACTED,REDACTED
Gloucester City Council,23UE,REDACTED,REDACTED,REDACTED,REDACTED,REDACTED,13/11/2014,REDACTED,206,NET,REDACTED,REDACTED
Gloucester City Council,23UE,REDACTED,REDACTED,REDACTED,REDACTED,REDACTED,13/11/2014,REDACTED,360,NET,REDACTED,REDACTED
Gloucester City Council,23UE,Guildhall Events,LA200,Maintenance Of Equipment,5030,Smoke & Haze Fluid,13/11/2014,393693,310,NET,Unique Sound Systems,59571S
Gloucester City Council,23UE,Investment Property,RB500,Consultants Fees,5349,David Hook Way,13/11/2014,393274,544.13,NET,Valuation Office Agency Administration,56377U
Gloucester City Council,23UE,Investment Property,RB500,Court Fees,5358,Enforcement services,13/11/2014,393613,75,NET,Adept Enforcement,14832M
Gloucester City Council,23UE,Investment Property,RB500,Court Fees,5358,Enforcement services,13/11/2014,393616,75,NET,Adept Enforcement,14832M
Gloucester City Council,23UE,Investment Property,RB500,General Repair/Maint Buildings,3000,PAINSWICK RD,13/11/2014,393545,845,NET,Rj Contracting (Environmental) Ltd,07429H
Gloucester City Council,23UE,Legal Services,RS200,Basic Pay - Temporary Staff,2751,Temporary Staff 02/11/2014,13/11/2014,393696,1190,NET,Michael Page International Recruitment Ltd,06601P
Gloucester City Council,23UE,Meet & Greet,FP309,Subscriptions,5600,Membership,13/11/2014,393698,295,NET,Coach Tourism Council,48015H
Gloucester City Council,23UE,Nms Contract,HI102,Clearance And Cleansing Fees,5384,NEW STREET,13/11/2014,393542,325,NET,Rj Contracting (Environmental) Ltd,07429H
Gloucester City Council,23UE,Nms Contract,HI102,Contracted Services,6970,NOV 2014,13/11/2014,393584,490613.67,NET,Enterprise (Aol) Ltd,06695G
Gloucester City Council,23UE,Northwarehouse,RB150,Fire Alarm Maintenance,3053,Engineer 21/08/2014,13/11/2014,393683,116.32,NET,Adt Fire & Security Plc,54086D
Gloucester City Council,23UE,Off Street Car Parks,PP110,Service Charges,3020,9A EASTGATE ST,13/11/2014,390459,982.25,NET,Workman Llp,11021M
Gloucester City Council,23UE,Printing,RP103,Printing,5300,September Printing,13/11/2014,393717,1790,NET,Alpha Colour Printers Ltd,00945B
Gloucester City Council,23UE,Registration Of Electors,RS400,Printing,5300,MAILINGS OCT 2014,13/11/2014,393551,1607.32,NET,Alpha Response Print & Mail Ltd,03029U
Gloucester City Council,23UE,Retail Market - Landlord,HM300,Cleaning / Domestic Equipment,5011,INITIAL WASHROOM SOLUTIONS,13/11/2014,392866,18.05,NET,Initial Washroom Solutions,06143R
Gloucester City Council,23UE,Safer Stronger Communities,FP841,Other Minor Supplies Services,5590,LABELS,13/11/2014,393567,191.5,NET,Tyden Brooks,59626S
Gloucester City Council,23UE,Theatre Tokens,LT106,Materials For Sale,5080,Sales October 2014,13/11/2014,393716,25,NET,Society Of London Theatre,05656Z
Gloucester City Council,23UE,Theatre Tokens,LT106,Sale Of Goods And Services,9230,Sales October 2014,13/11/2014,393716,-1.25,NET,Society Of London Theatre,05656Z
Gloucester City Council,23UE,Tic Trading,LT110,Materials For Sale,5080,Keys,13/11/2014,393700,331,NET,N & C Building Products Ltd,02054E
Gloucester City Council,23UE,Tic Trading,LT110,Materials For Sale,5080,Polo Shirts,13/11/2014,393699,912.5,NET,Sportfolio Europe Lp,14456R
Gloucester City Council,23UE,Tic Trading,LT110,Trade Refuse Sacks,5040,Trade Sacks,13/11/2014,393765,1848.8,NET,Enterprise (Aol) Ltd,06695G
Gloucester City Council,23UE,Tourism Marketing,LT100,Cleaning Materials,3600,Cleaning Materials,13/11/2014,393713,21.76,NET,Robert Hall Business Equipment Ltd,19925B
Gloucester City Council,23UE,Tourism Marketing,LT100,Window Cleaning,3610,"Window Cleaning, 29/09, 06/10 14",13/11/2014,393701,12,NET,Interserve Fs (Uk) Limited,00442K
Gloucester City Council,23UE,Tree Planting Grant Funded,LY150,Contract Payments,0020,landscaping and ecology works,13/11/2014,391467,1250,CAP,Mr M G Horton T/A H&T Property Maintenance,09210X
Gloucester City Council,23UE,Vehicles,RS140,Basic Pay - Cleaners,2401,Fuel,13/11/2014,393720,165.82,NET,Allstar Business Solutions Ltd (Arval),06594A
Gloucester City Council,23UE,1 Albion Cottages,RB545,Consultants Fees,5349,2 Albion Cottages,14/11/2014,393606,0,NET,Naylor Powell,08867T
Gloucester City Council,23UE,2 Albion Cottages,RB546,Consultants Fees,5349,2 Albion Cottages,14/11/2014,393606,2400,NET,Naylor Powell,08867T
Gloucester City Council,23UE,Business Support,PT250,Publications,5060,Citizen,14/11/2014,393608,195,NET,Ymk Supermarket,55281U
Gloucester City Council,23UE,Cemeteries,HC300,"Seeds, Trees, Plants, Shrubs",3028,Roses,14/11/2014,393607,75.8,NET,Genus Plant Sourcing,14143S
Gloucester City Council,23UE,Cemeteries,HC300,Trade Refuse Tipping Fees,6297,Green Waste,14/11/2014,393753,380,NET,Allstone Sand & Gravel Aggregates Ltd,00940M
Gloucester City Council,23UE,Cemeteries,HC300,Trade Refuse Tipping Fees,6297,Inert Waste,14/11/2014,393754,360,NET,Allstone Sand & Gravel Aggregates Ltd,00940M
Gloucester City Council,23UE,Cemeteries,HC300,Trade Refuse Tipping Fees,6297,Mixed Waste,14/11/2014,393755,405,NET,Allstone Sand & Gravel Aggregates Ltd,00940M
Gloucester City Council,23UE,Cemeteries,HC300,Trade Refuse Tipping Fees,6297,Weekly Dumper Hire Oct 2014,14/11/2014,393634,475,NET,Allstone Sand & Gravel Aggregates Ltd,00940M
Gloucester City Council,23UE,City Museum And Art Gallery,LM200,Publications For Sale,5064,"Table Cloths, placemats etc",14/11/2014,393622,117.66,NET,Eggnogg Ltd,14996A
Gloucester City Council,23UE,Civil Parking Enforcement,PT741,Contracted Services,6970,August 2014 Variable Services,14/11/2014,393684,20741.28,NET,Apcoa Parking (Uk) Ltd,09954M
Gloucester City Council,23UE,Crematorium,HC200,Uniforms,5201,Fleece Jacket,14/11/2014,393629,25.6,NET,Safpro Industrial Supply Co,39190W
Gloucester City Council,23UE,Democratic Services,RS100,Vocational Training,2970,Membership renewal 14/15,14/11/2014,393668,47.5,NET,Association Of Electoral Administrators,03013K
Gloucester City Council,23UE,Docks Complex - Services,RB100,General Repair/Maint Buildings,3000,Carpet Cleaning Oct 2014,14/11/2014,393600,40,NET,Into Cleaning,14609P
Gloucester City Council,23UE,Docks Complex - Services,RB100,Recycling,3631,Recycling & Shredding,14/11/2014,393697,123.3,NET,Printwaste Recycling,57114W
Gloucester City Council,23UE,Economic Development,FP300,Business Grant,7116,Business Rent Grant,14/11/2014,393632,500,NET,Roots Coffee & Community Cic,13358B
Gloucester City Council,23UE,REDACTED,REDACTED,REDACTED,REDACTED,REDACTED,14/11/2014,REDACTED,1500,NET,REDACTED,REDACTED
Gloucester City Council,23UE,Emergency Out Of Hours Calls,RB301,Fees For Services Received,5350,Additional Calls October 2014,14/11/2014,393681,24.16,NET,Office Response,09439K
Gloucester City Council,23UE,Environmental Planning,LM340,Other Minor Supplies Services,5590,Historic Environment Law 14 Supplement,14/11/2014,393669,20,NET,Institute Of Art And Law,15042P
Gloucester City Council,23UE,Folk Museum,LM210,Printing,5300,Catalogue,14/11/2014,393624,3563,NET,Color Co,57707K
Gloucester City Council,23UE,Forest Of Dean Cpe,PT744,Contracted Services,6970,August 2014 Variable Services,14/11/2014,393684,2019.75,NET,Apcoa Parking (Uk) Ltd,09954M
Gloucester City Council,23UE,Forest Of Dean Off Street,PT742,Contracted Services,6970,August 2014 Variable Services,14/11/2014,393684,1172.59,NET,Apcoa Parking (Uk) Ltd,09954M
Gloucester City Council,23UE,REDACTED,REDACTED,REDACTED,REDACTED,REDACTED,14/11/2014,REDACTED,284,NET,REDACTED,REDACTED
Gloucester City Council,23UE,Guildhall Events,LA200,Security Services Fees,5351,"Door Staff, Guildhall October 2014",14/11/2014,393682,974.38,NET,Nsgl Ltd,12539E
Gloucester City Council,23UE,Hillfield Gardens S106,LY112,Contract Payments,0020,"Hillfield Gardens, gate welding",14/11/2014,393690,150,CAP,Greenfields Garden Services Ltd,48130G
Gloucester City Council,23UE,Homelessness,CH120,Board And Lodging,5515,various tenants,14/11/2014,393799,896.82,NET,James Legge Property (Ltd),07844R
Gloucester City Council,23UE,Homelessness,CH120,Board And Lodging,5515,various tenants,14/11/2014,393794,968.55,NET,Carbrey Housing Ltd,11098G
Gloucester City Council,23UE,Homelessness,CH120,Board And Lodging,5515,various tenants,14/11/2014,393796,1389.88,NET,Kalmwood Ltd,08568G
Gloucester City Council,23UE,Homelessness,CH120,Board And Lodging,5515,various tenants,14/11/2014,393793,494.24,NET,Carbrey Housing Ltd,11098G
Gloucester City Council,23UE,Homelessness,CH120,Board And Lodging,5515,various tenants,14/11/2014,393797,2899.95,NET,Dorchester House Trust,12298D
Gloucester City Council,23UE,Homelessness,CH120,Board And Lodging,5515,various tenants,14/11/2014,393792,898.33,NET,Carbrey Housing Ltd,11098G
Gloucester City Council,23UE,REDACTED,REDACTED,REDACTED,REDACTED,REDACTED,14/11/2014,REDACTED,256.61,NET,REDACTED,REDACTED
Gloucester City Council,23UE,REDACTED,REDACTED,REDACTED,REDACTED,REDACTED,14/11/2014,REDACTED,2436.02,NET,REDACTED,REDACTED
Gloucester City Council,23UE,REDACTED,REDACTED,REDACTED,REDACTED,REDACTED,14/11/2014,REDACTED,396,NET,REDACTED,REDACTED
Gloucester City Council,23UE,REDACTED,REDACTED,REDACTED,REDACTED,REDACTED,14/11/2014,REDACTED,1009.26,NET,REDACTED,REDACTED
Gloucester City Council,23UE,REDACTED,REDACTED,REDACTED,REDACTED,REDACTED,14/11/2014,REDACTED,270,NET,REDACTED,REDACTED
Gloucester City Council,23UE,REDACTED,REDACTED,REDACTED,REDACTED,REDACTED,14/11/2014,REDACTED,25,NET,REDACTED,REDACTED
Gloucester City Council,23UE,Investment Property,RB500,Fire Smoke Detection System,3059,Inspection,14/11/2014,393704,290,NET,A & E Fire Equipment Limited,54289L
Gloucester City Council,23UE,Legal Services,RS200,Basic Pay - Temporary Staff,2751,Temporary Staff w/e 09/11/2014,14/11/2014,393630,980,NET,Michael Page International Recruitment Ltd,06601P
Gloucester City Council,23UE,Off Street Car Parks,PP110,Contracted Services,6970,August 2014 Variable Services,14/11/2014,393684,17496.76,NET,Apcoa Parking (Uk) Ltd,09954M
Gloucester City Council,23UE,Public Health,HD200,Other Minor Supplies Services,5590,Podsmead Community Choir,14/11/2014,393619,3000,NET,Nathan Timothy Foundation,15181E
Gloucester City Council,23UE,Safer Stronger Communities,FP841,Other Minor Supplies Services,5590,Various Items,14/11/2014,393708,1030,NET,Solon Security Ltd,02010B
Gloucester City Council,23UE,Stationery Services,RS150,Printing,5300,Stationary,14/11/2014,393757,1.98,NET,Lyreco Uk Ltd,11746G
Gloucester City Council,23UE,Stationery Services,RS150,Stationery,5302,Sationary,14/11/2014,393756,267.38,NET,Lyreco Uk Ltd,11746G
Gloucester City Council,23UE,The Arbor,HC501,Catering Provisions -Liquor,5111,Liquor,14/11/2014,393609,345.83,NET,Cellar Supplies Cheltenham Ltd,01563L
Gloucester City Council,23UE,REDACTED,REDACTED,REDACTED,REDACTED,REDACTED,14/11/2014,REDACTED,2040,NET,REDACTED,REDACTED
Gloucester City Council,23UE,Tree Planting Grant Funded,LY150,Contract Payments,0020,Consultancy Support,14/11/2014,393601,535,CAP,Smith Consult Ltd,13842R
Gloucester City Council,23UE,Waterwells Park And Ride,PJ120,Contracted Services,6970,August 2014 Variable Services,14/11/2014,393684,388,NET,Apcoa Parking (Uk) Ltd,09954M
Gloucester City Council,23UE,Civica Admin Charges,RT105,Postages,5400,Post 13/10 - 24/10 2014,17/11/2014,393335,1276.96,NET,Royal Mail S.Wales & South West,35830S
Gloucester City Council,23UE,Client Revs & Bens Contract,RT240,Bailiffs Fees,5368,VAT on Statutory Fees,17/11/2014,393626,392.65,NET,Bristow & Sutor,05450M
Gloucester City Council,23UE,Client Revs & Bens Contract,RT240,Bailiffs Fees,5368,VAT on Statutory Fees,17/11/2014,393627,75,NET,Bristow & Sutor,05450M
Gloucester City Council,23UE,Client Revs & Bens Contract,RT240,Bailiffs Fees,5368,VAT on Statutory Fees,17/11/2014,393628,0,NET,Bristow & Sutor,05450M
Gloucester City Council,23UE,Corporate Reporting /Financing,RC504,Fees For Services Received,5350,Childcare Vouchers November 2014,17/11/2014,393625,27.75,NET,Wider Plan Ltd ( Formerly Kiddivouchers),07893B
Gloucester City Council,23UE,Disabled Facilities Grants,CY013,Disabled Facility Grants,0074,MDF5093,17/11/2014,393965,6265,CAP,Pinetree (Gloucester) Ltd,53288Y
Gloucester City Council,23UE,Docks Complex - Catering Servs,RB110,Catering Provisions -Food,5110,Food w/e 09/11/2014,17/11/2014,393673,95.57,NET,Janes Pantry,24500W
Gloucester City Council,23UE,Guildhall Bar And Caf�,LA210,Catering Provisions -Food,5110,Food w/e 07/09/2014,17/11/2014,393679,33.6,NET,Janes Pantry,24500W
Gloucester City Council,23UE,REDACTED,REDACTED,REDACTED,REDACTED,REDACTED,17/11/2014,REDACTED,1250,NET,REDACTED,REDACTED
Gloucester City Council,23UE,REDACTED,REDACTED,REDACTED,REDACTED,REDACTED,17/11/2014,REDACTED,150,NET,REDACTED,REDACTED
Gloucester City Council,23UE,REDACTED,REDACTED,REDACTED,REDACTED,REDACTED,17/11/2014,REDACTED,100,NET,REDACTED,REDACTED
Gloucester City Council,23UE,REDACTED,REDACTED,REDACTED,REDACTED,REDACTED,17/11/2014,REDACTED,120,NET,REDACTED,REDACTED
Gloucester City Council,23UE,REDACTED,REDACTED,REDACTED,REDACTED,REDACTED,17/11/2014,REDACTED,150,NET,REDACTED,REDACTED
Gloucester City Council,23UE,REDACTED,REDACTED,REDACTED,REDACTED,REDACTED,17/11/2014,REDACTED,270,NET,REDACTED,REDACTED
Gloucester City Council,23UE,REDACTED,REDACTED,REDACTED,REDACTED,REDACTED,17/11/2014,REDACTED,506.48,NET,REDACTED,REDACTED
Gloucester City Council,23UE,REDACTED,REDACTED,REDACTED,REDACTED,REDACTED,17/11/2014,REDACTED,500,NET,REDACTED,REDACTED
Gloucester City Council,23UE,Photocopying,RS130,Photocopying,5320,Chareable Service Call,17/11/2014,392518,350.84,NET,Danwood Group Limited,09555G
Gloucester City Council,23UE,Photocopying,RS130,Photocopying,5320,Prints,17/11/2014,392598,33967.8,NET,Danwood Group Limited,09555G
Gloucester City Council,23UE,Safer Stronger Communities,FP841,Other Minor Supplies Services,5590,Twin Purse Bell with Clip,17/11/2014,393603,555,NET,J N E Marketing,50340C
Gloucester City Council,23UE,Safer Stronger Communities,FP841,Other Minor Supplies Services,5590,Wristband,17/11/2014,393604,64,NET,J N E Marketing,50340C
Gloucester City Council,23UE,Targeted Historic Grants,GY008,Contract Payments,0020,Westgate Mosaic Installation,17/11/2014,393763,1224,CAP,Talus Construction Ltd,10401G
Gloucester City Council,23UE,Townscape Heritage Initiative,LY145,Contract Payments,0020,Limestone for St Mary de Crypt,17/11/2014,393976,20763,CAP,Bourne Masonry,15013X
Gloucester City Council,23UE,Westgate Mosaics,GY018,Contract Payments,0020,Westgate Mosaic Installation,17/11/2014,393763,2750,CAP,Talus Construction Ltd,10401G
Gloucester City Council,23UE,REDACTED,REDACTED,REDACTED,REDACTED,REDACTED,18/11/2014,REDACTED,135,NET,REDACTED,REDACTED
Gloucester City Council,23UE,Cems/Crems Admin,HC100,Security Services Fees,5351,Cash Processed October 2014,18/11/2014,393964,13.73,NET,G4s Cash Solutions (Uk) Ltd,04290V
Gloucester City Council,23UE,Civica Admin Charges,RT105,Fees For Services Received,5350,Subscription Advance,18/11/2014,393631,4,NET,Companies House,58954E
Gloucester City Council,23UE,Client Revs & Bens Contract,RT240,Bank Charges And Adjustments,5950,Probate Search,18/11/2014,394000,6,NET,Hm Courts & Tribunals Service,12497V
Gloucester City Council,23UE,Client Revs & Bens Contract,RT240,Security Services Fees,5351,Cash Processed October 2014,18/11/2014,393964,3.43,NET,G4s Cash Solutions (Uk) Ltd,04290V
Gloucester City Council,23UE,Contact Centre,RB300,Basic Pay -Admin /Prof Staff,2601,Temporary Staff w/e 07/11/2014,18/11/2014,393973,966.57,NET,One To One Recruitment,04752H
Gloucester City Council,23UE,Disabled Facilities Grants,CY013,Disabled Facility Grants,0074,Disabled Facilities Grant works,18/11/2014,393615,7043,CAP,Beard & Tandy,03160V
Gloucester City Council,23UE,Dwelling Acquisitions,BY006,Contract Payments,0020,October 2014 Capital Fee,18/11/2014,393614,774876.65,CAP,Gloucester City Homes,05244T
Gloucester City Council,23UE,Gf Lifelinks,CH180,Contracted Services,6970,November Management Fee,18/11/2014,393612,5270.83,NET,Gloucester City Homes,05244T
Gloucester City Council,23UE,REDACTED,REDACTED,REDACTED,REDACTED,REDACTED,18/11/2014,REDACTED,1784.83,NET,REDACTED,REDACTED
Gloucester City Council,23UE,REDACTED,REDACTED,REDACTED,REDACTED,REDACTED,18/11/2014,REDACTED,4350,NET,REDACTED,REDACTED
Gloucester City Council,23UE,Hackney Carriages,HL100,Fees For Services Received,5350,DBS Charges,18/11/2014,393705,792,NET,Disclosure And Barring Service,00119W
Gloucester City Council,23UE,Hempsted Market/Car Boot,HM234,Hire Of Equipment,5020,Portable Office November 2014,18/11/2014,393635,254.19,NET,Portable Offices (Hire ) Ltd*,06286R
Gloucester City Council,23UE,Investment Property,RB500,Lift Maintenance,3051,Engineer 23/10/2014,18/11/2014,393966,76.58,NET,Pickerings Europe Ltd*,58816U
Gloucester City Council,23UE,Mandatory Rent Allowances,DD100,Rent Allows - Other La Recovs,7210,HB Deductions,18/11/2014,394003,249.45,NET,Cotswold District Council,13954C
Gloucester City Council,23UE,Off Street Car Parks,PP110,Contracted Services,6970,Trade Waste Charges Oct- Dec 2014,18/11/2014,393957,290.42,NET,Enterprise (Aol) Ltd,06695G
Gloucester City Council,23UE,Play Area Refurbishment,LY071,Contract Payments,0020,Trampoline,18/11/2014,393623,3139,CAP,Proludic Ltd,03576G
Gloucester City Council,23UE,Postal Services,RS120,Postages,5400,Post 24/10 - 06/11 2014,18/11/2014,393969,1016.68,NET,Royal Mail S.Wales & South West,35830S
Gloucester City Council,23UE,Postal Services,RS120,Postages,5400,Response Service 18/10- 01/11 2014,18/11/2014,393968,203.08,NET,Royal Mail S.Wales & South West,35830S
Gloucester City Council,23UE,Postal Services,RS120,Postages,5400,Response Services 09/08- 08/11 2014,18/11/2014,393970,87.51,NET,Royal Mail S.Wales & South West,35830S
Gloucester City Council,23UE,Vehicles,RS140,Fuel,4012,Fuel,18/11/2014,393972,314.59,NET,Allstar Business Solutions Ltd (Arval),06594A
Gloucester City Council,23UE,All Main Buildings Voltage Mas,RY180,Capital General Repairs & Main,0013,Barbican Car park 15/09/2014,19/11/2014,393689,1252.3,CAP,Hanman Split Ltd,56889J
Gloucester City Council,23UE,Aspire Admin Charges,LC105,Other Minor Income,9900,BAILIFF PAYMENTS 31/10/14,19/11/2014,394057,80.8,NET,Aspire Sports & Cultural Trust,08135V
Gloucester City Council,23UE,Asset Management,RS300,Basic Pay - Temporary Staff,2751,Temporary Staff w/e 19/09/2014,19/11/2014,393344,1311.5,NET,Hays Specialist Recruitment,04355S
Gloucester City Council,23UE,Bus Station,RB400,Water Supply,3400,ACCT 7890105225,19/11/2014,394002,168.61,NET,Severn Trent Water,01823H
Gloucester City Council,23UE,Cemeteries,HC300,Maint Of Grounds - General,3030,Stakes,19/11/2014,393975,79,NET,Millington & Ramstedt Ltd,29815S
Gloucester City Council,23UE,City Museum And Art Gallery,LM200,Publications For Sale,5064,Gloucestershire new flag,19/11/2014,391219,51.55,NET,Midland Imports,13825R
Gloucester City Council,23UE,Civica Admin Charges,RT105,Postages,5400,Post 27/10 - 03/11 2014,19/11/2014,393971,1517.51,NET,Royal Mail S.Wales & South West,35830S
Gloucester City Council,23UE,Client Revs & Bens Contract,RT240,Fees For Services Received,5350,Bailiff services,19/11/2014,393923,49.5,NET,Assevarate Ltd,11749A
Gloucester City Council,23UE,Client Revs & Bens Contract,RT240,Fees For Services Received,5350,Bailiff services,19/11/2014,393924,49.5,NET,Assevarate Ltd,11749A
Gloucester City Council,23UE,Council Streetcare Team,HI101,Maint Of Grounds - General,3030,Spray Japanese Knotweed,19/11/2014,393931,25,NET,Greenfields Garden Services Ltd,48130G
Gloucester City Council,23UE,Council Streetcare Team,HI101,Maint Of Paths/Hardstandings,3056,"Redwell Road, 17/10/2014",19/11/2014,393916,225.1,NET,Three Counties Drain Service,44033V
Gloucester City Council,23UE,Council Streetcare Team,HI101,Water Supply,3400,ACCT 7890105225,19/11/2014,394002,103.6,NET,Severn Trent Water,01823H
Gloucester City Council,23UE,Crematorium,HC200,Water Supply,3400,ACCT 7890105225,19/11/2014,394002,37.57,NET,Severn Trent Water,01823H
Gloucester City Council,23UE,REDACTED,REDACTED,REDACTED,REDACTED,REDACTED,19/11/2014,REDACTED,75,NET,REDACTED,REDACTED
Gloucester City Council,23UE,Docks Complex - Services,RB100,Water Supply,3400,ACCT 7890105225,19/11/2014,394002,1188.05,NET,Severn Trent Water,01823H
Gloucester City Council,23UE,Environmental Planning,LM340,Repair/Maint Of Monuments,3004,Cherry Picker Costs,19/11/2014,393944,160,NET,Andrew Townsend Architects,57296K
Gloucester City Council,23UE,Environmental Planning,LM340,Repair/Maint Of Monuments,3004,Copper Staining Removal,19/11/2014,393946,870,NET,Andy Mitchell Sculptures,08865X
Gloucester City Council,23UE,General Drainage Works,PY241,Contract Payments,0020,St Peters School 29/10/2014,19/11/2014,393920,10250,CAP,Rj Contracting (Environmental) Ltd,07429H
Gloucester City Council,23UE,Gloucester Guildhall,LA100,Water Supply,3400,ACCT 7890105225,19/11/2014,394002,281.29,NET,Severn Trent Water,01823H
Gloucester City Council,23UE,Guildhall Bar And Caf�,LA210,Catering Provisions -Food,5110,Food w/e 02/11/2014,19/11/2014,393286,32.9,NET,Janes Pantry,24500W
Gloucester City Council,23UE,REDACTED,REDACTED,REDACTED,REDACTED,REDACTED,19/11/2014,REDACTED,1400,NET,REDACTED,REDACTED
Gloucester City Council,23UE,Hackney Carriages,HL100,Fees For Services Received,5350,DVLA Electronic Check,19/11/2014,393637,87,NET,Intelligent Data Systems (Uk) Ltd,11067G
Gloucester City Council,23UE,Homelessness,CH120,Board And Lodging,5515,Emergency Accomodation,19/11/2014,393722,60,NET,Gloucestershire County Council,18650D
Gloucester City Council,23UE,REDACTED,REDACTED,REDACTED,REDACTED,REDACTED,19/11/2014,REDACTED,364.6,NET,REDACTED,REDACTED
Gloucester City Council,23UE,REDACTED,REDACTED,REDACTED,REDACTED,REDACTED,19/11/2014,REDACTED,484.6,NET,REDACTED,REDACTED
Gloucester City Council,23UE,REDACTED,REDACTED,REDACTED,REDACTED,REDACTED,19/11/2014,REDACTED,364.6,NET,REDACTED,REDACTED
Gloucester City Council,23UE,REDACTED,REDACTED,REDACTED,REDACTED,REDACTED,19/11/2014,REDACTED,484.6,NET,REDACTED,REDACTED
Gloucester City Council,23UE,REDACTED,REDACTED,REDACTED,REDACTED,REDACTED,19/11/2014,REDACTED,600,NET,REDACTED,REDACTED
Gloucester City Council,23UE,REDACTED,REDACTED,REDACTED,REDACTED,REDACTED,19/11/2014,REDACTED,280,NET,REDACTED,REDACTED
Gloucester City Council,23UE,REDACTED,REDACTED,REDACTED,REDACTED,REDACTED,19/11/2014,REDACTED,395,NET,REDACTED,REDACTED
Gloucester City Council,23UE,REDACTED,REDACTED,REDACTED,REDACTED,REDACTED,19/11/2014,REDACTED,550,NET,REDACTED,REDACTED
Gloucester City Council,23UE,Inhouse Training,EH200,Vocational Training,2970,First Aid Course,19/11/2014,393323,490,NET,Aspire Sports & Cultural Trust,08135V
Gloucester City Council,23UE,Investment Property,RB500,Repair/Maint Of Fixed Plant,3006,Checks 03/10/2014,19/11/2014,393352,2128.76,NET,Hewer Facilities Mgt Ltd,05232A
Gloucester City Council,23UE,Investment Property,RB500,Water Supply,3400,ACCT 7890105225,19/11/2014,394002,300.42,NET,Severn Trent Water,01823H
Gloucester City Council,23UE,REDACTED,REDACTED,REDACTED,REDACTED,REDACTED,19/11/2014,REDACTED,500,NET,REDACTED,REDACTED
Gloucester City Council,23UE,Off Street Car Parks,PP110,Water Supply,3400,ACCT 7890105225,19/11/2014,394002,2979.3,NET,Severn Trent Water,01823H
Gloucester City Council,23UE,Pollution Control,HE300,Fees For Services Received,5350,Dust Sample Analysis,19/11/2014,393636,480,NET,Dustscan Ltd,03448T
Gloucester City Council,23UE,Public Conveniences (Client),HI400,Water Supply,3400,ACCT 7890105225,19/11/2014,394002,168.61,NET,Severn Trent Water,01823H
Gloucester City Council,23UE,Rehousing,CH111,Fees For Services Received,5350,Medical Report,19/11/2014,393605,20.5,NET,Rosebank Health,03041E
Gloucester City Council,23UE,Retail Market - Landlord,HM300,Trade Refuse Collection,3630,Waste Oct 2014,19/11/2014,393676,150,NET,B & S Pointon Ltd,06253G
Gloucester City Council,23UE,The Arbor,HC501,Catering Provisions -Food,5110,Food & Drink,19/11/2014,393288,141.45,NET,Caffeica Ltd,11923J
Gloucester City Council,23UE,The Arbor,HC501,Catering Provisions -Food,5110,Food w/e 02/11/2014,19/11/2014,393284,228.2,NET,Janes Pantry,24500W
Gloucester City Council,23UE,Tic Trading,LT110,Materials For Sale,5080,Gloucestershire new flag,19/11/2014,391219,51.55,NET,Midland Imports,13825R
Gloucester City Council,23UE,Utilities,PT502,Electricity Supply,3110,NAVIGATION HOUSE,19/11/2014,392958,26.35,NET,Opus Energy (Corporate),12788B
Gloucester City Council,23UE,Utilities,PT502,Electricity Supply,3110,NAVIGATION HOUSE,19/11/2014,392959,26.35,NET,Opus Energy (Corporate),12788B
Gloucester City Council,23UE,Utilities,PT502,Electricity Supply,3110,ROBINSWOOD HILL,19/11/2014,394001,364.77,NET,Npower,03929V
Gloucester City Council,23UE,Utilities,PT502,Electricity Supply,3110,UTILITIES TO OCT 2014,19/11/2014,393418,3771.01,NET,West Mercia Energy,11669Z
Gloucester City Council,23UE,Utilities,PT502,Gas Supply,3100,UTILITIES TO OCT 2014,19/11/2014,393418,4190.74,NET,West Mercia Energy,11669Z
Gloucester City Council,23UE,REDACTED,REDACTED,REDACTED,REDACTED,REDACTED,19/11/2014,REDACTED,526,NET,REDACTED,REDACTED
Gloucester City Council,23UE,REDACTED,REDACTED,REDACTED,REDACTED,REDACTED,19/11/2014,REDACTED,88.83,NET,REDACTED,REDACTED
Gloucester City Council,23UE,REDACTED,REDACTED,REDACTED,REDACTED,REDACTED,19/11/2014,REDACTED,743.33,NET,REDACTED,REDACTED
Gloucester City Council,23UE,REDACTED,REDACTED,REDACTED,REDACTED,REDACTED,19/11/2014,REDACTED,293.25,NET,REDACTED,REDACTED
Gloucester City Council,23UE,REDACTED,REDACTED,REDACTED,REDACTED,REDACTED,19/11/2014,REDACTED,76.5,NET,REDACTED,REDACTED
Gloucester City Council,23UE,REDACTED,REDACTED,REDACTED,REDACTED,REDACTED,19/11/2014,REDACTED,293.25,NET,REDACTED,REDACTED
Gloucester City Council,23UE,REDACTED,REDACTED,REDACTED,REDACTED,REDACTED,19/11/2014,REDACTED,271.15,NET,REDACTED,REDACTED
Gloucester City Council,23UE,REDACTED,REDACTED,REDACTED,REDACTED,REDACTED,19/11/2014,REDACTED,2381,NET,REDACTED,REDACTED
Gloucester City Council,23UE,REDACTED,REDACTED,REDACTED,REDACTED,REDACTED,19/11/2014,REDACTED,2249,NET,REDACTED,REDACTED
Gloucester City Council,23UE,Cemeteries,HC300,Routine R And M - Vehicles,4011,Repairs,20/11/2014,393905,85.2,NET,Garden Machinery Gloucester,55641K
Gloucester City Council,23UE,Contact Centre,RB300,Basic Pay -Admin /Prof Staff,2601,Temporary Staff w/e 02/11/2014,20/11/2014,393887,577.5,NET,Cps Anystaff Recruitment Ltd,13945D
Gloucester City Council,23UE,Countryside Unit,LP201,Clothing,5200,Helmets,20/11/2014,393894,6.17,NET,Severnside Safety Supplies Ltd,57132O
Gloucester City Council,23UE,Countryside Unit,LP201,Clothing,5200,Leather Sweatband,20/11/2014,393893,8.05,NET,Severnside Safety Supplies Ltd,57132O
Gloucester City Council,23UE,Countryside Unit,LP201,Safety Equipment,5013,Helmets,20/11/2014,393894,141.38,NET,Severnside Safety Supplies Ltd,57132O
Gloucester City Council,23UE,Crematorium,HC200,Book Of Memory,5055,Site Visit 24/10/2014,20/11/2014,393888,56.02,NET,Hilton Cabinet Co Ltd,21910A
Gloucester City Council,23UE,Crematorium,HC200,Repair/Maint Of Fixed Plant,3006,"Thermocouple, leads & plugs",20/11/2014,393922,340.26,NET,Facultatieve Technologies Ltd,51210H
Gloucester City Council,23UE,Crematorium Roads,HY041,Contract Payments,0020,Hearth & Charge Door,20/11/2014,393917,2610,CAP,Facultatieve Technologies Ltd,51210H
Gloucester City Council,23UE,Gloucester Guildhall,LA100,General Repair/Maint Buildings,3000,TILES,20/11/2014,394122,428,NET,Discount Carpet Tiles,14901R
Gloucester City Council,23UE,REDACTED,REDACTED,REDACTED,REDACTED,REDACTED,20/11/2014,REDACTED,400,NET,REDACTED,REDACTED
Gloucester City Council,23UE,Hempsted Market/Car Boot,HM234,Sewerage And Environ Charges,3402,Unit Services,20/11/2014,393909,483.2,NET,Abbey Loos Limited,10787B
Gloucester City Council,23UE,Homelessness,CH120,Board And Lodging,5515,Sept Voids,20/11/2014,393912,949.64,NET,Gloucester City Homes,05244T
Gloucester City Council,23UE,Homelessness,CH120,Fees For Services Received,5350,Medical Report,20/11/2014,393897,20.5,NET,Rosebank Health,03041E
Gloucester City Council,23UE,Homelessness,CH120,Fees For Services Received,5350,Medical Advice October 2014,20/11/2014,393900,95,NET,Now Medical,03468L
Gloucester City Council,23UE,Homelessness,CH120,Removal And Storage Fees,5513,storage facilities,20/11/2014,393899,110,NET,Advanced Removals & Storage Ltd,57142R
Gloucester City Council,23UE,REDACTED,REDACTED,REDACTED,REDACTED,REDACTED,20/11/2014,REDACTED,20.5,NET,REDACTED,REDACTED
Gloucester City Council,23UE,Legal Services,RS200,Basic Pay - Temporary Staff,2751,Temporary Staff w/e 07/11/2014,20/11/2014,393896,1250.42,NET,Venn Group Ltd,04339P
Gloucester City Council,23UE,Legal Services,RS200,Basic Pay - Temporary Staff,2751,Temporary Staff Oct 2014,20/11/2014,394024,2200,NET,Paystream My Max Limited,15049Z
Gloucester City Council,23UE,REDACTED,REDACTED,REDACTED,REDACTED,REDACTED,20/11/2014,REDACTED,318,NET,REDACTED,REDACTED
Gloucester City Council,23UE,Meet & Greet,FP309,Advertising And Publicity,5702,Coach Tours November 2014,20/11/2014,393890,380,NET,A T Graphics Ltd,14985F
Gloucester City Council,23UE,Programme Of Works Cem&Crem,HY045,Contract Payments,0020,Hearth & Charge Door,20/11/2014,393917,10494,CAP,Facultatieve Technologies Ltd,51210H
Gloucester City Council,23UE,Rehousing,CH111,Fees For Services Received,5350,Medical Advice October 2014,20/11/2014,393900,135,NET,Now Medical,03468L
Gloucester City Council,23UE,Retail Market - Landlord,HM300,Sewerage And Environ Charges,3402,Pest Control 11/11/2014,20/11/2014,393910,67,NET,Falconry Services Ltd,10692P
Gloucester City Council,23UE,Retail Market - Landlord,HM300,Sewerage And Environ Charges,3402,Work 03/11/2014,20/11/2014,393908,180,NET,Eezeeflow Drain Services,11587C
Gloucester City Council,23UE,Shopmobility,PE200,Cleaning Materials,3600,Cleaning Materials,20/11/2014,393886,12.09,NET,Core Hygiene Ltd,03885P
Gloucester City Council,23UE,Stationery Services,RS150,Stationery,5302,Stationary,20/11/2014,393913,8.91,NET,Lyreco Uk Ltd,11746G
Gloucester City Council,23UE,Stationery Services,RS150,Stationery,5302,Stationary,20/11/2014,393914,71.76,NET,Lyreco Uk Ltd,11746G
Gloucester City Council,23UE,Tic Rovercard Sales,LT101,Materials For Sale,5080,Tickets oct 2014,20/11/2014,393889,5249,NET,Stagecoach Services Ltd*,56554W
Gloucester City Council,23UE,Tic Rovercard Sales,LT101,Sale Of Goods And Services,9230,Tickets oct 2014,20/11/2014,393889,-437.42,NET,Stagecoach Services Ltd*,56554W
Gloucester City Council,23UE,Tic Trading,LT110,Materials For Sale,5080,Cards,20/11/2014,393911,171.8,NET,James Hopkins Trust,49394H
Gloucester City Council,23UE,Ugly Structures,GY010,Contract Payments,0020,Site Visit 27/08/2014,20/11/2014,391208,95,CAP,Asm Scaffolding Services Ltd,14573K
Gloucester City Council,23UE,Cemeteries,HC300,Maint Of Grounds - General,3030,padlocks,21/11/2014,393904,108,NET,Gloucester Locksmiths,18160C
Gloucester City Council,23UE,City Museum And Art Gallery,LM200,Catering Provisions -Food,5110,Milk,21/11/2014,394235,4.96,NET,Total Produce Gloucester,12645E
Gloucester City Council,23UE,City Museum And Art Gallery,LM200,Catering Provisions -Food,5110,Milk,21/11/2014,394236,4.96,NET,Total Produce Gloucester,12645E
Gloucester City Council,23UE,City Museum And Art Gallery,LM200,Catering Provisions -Food,5110,Milk,21/11/2014,394237,4.96,NET,Total Produce Gloucester,12645E
Gloucester City Council,23UE,City Museum And Art Gallery,LM200,Catering Provisions -Food,5110,Milk,21/11/2014,394238,4.96,NET,Total Produce Gloucester,12645E
Gloucester City Council,23UE,City Museum And Art Gallery,LM200,Catering Provisions -Food,5110,Milk,21/11/2014,394247,4.96,NET,Total Produce Gloucester,12645E
Gloucester City Council,23UE,City Museum And Art Gallery,LM200,Catering Provisions -Food,5110,Milk,21/11/2014,394248,4.96,NET,Total Produce Gloucester,12645E
Gloucester City Council,23UE,City Museum And Art Gallery,LM200,Catering Provisions -Food,5110,Milk,21/11/2014,394249,4.96,NET,Total Produce Gloucester,12645E
Gloucester City Council,23UE,City Museum And Art Gallery,LM200,Catering Provisions -Food,5110,Milk,21/11/2014,394250,4.96,NET,Total Produce Gloucester,12645E
Gloucester City Council,23UE,City Museum Catering,LM202,Catering Provisions -Food,5110,Food,21/11/2014,394252,112.27,NET,Woodward Foodservice,10714F
Gloucester City Council,23UE,City Museum Catering,LM202,Catering Provisions -Food,5110,Food,21/11/2014,394253,118.75,NET,Woodward Foodservice,10714F
Gloucester City Council,23UE,Civic Admin And Hospitality,RC210,Hospitality,5122,Wreath,21/11/2014,394025,124,NET,Royal British Legion Gloucester City Branch,01510J
Gloucester City Council,23UE,Docks Complex - Services,RB100,Service Charges,3020,TRADE WASTE OCT-DEC 2014,21/11/2014,393501,14327,NET,Enterprise (Aol) Ltd,06695G
Gloucester City Council,23UE,Electrical Investigatory Works,RY142,Contract Payments,0020,Clean 20/10/2014,21/11/2014,393929,541.8,CAP,Kingfisher Environmental Services Ltd,04738V
Gloucester City Council,23UE,Electrical Investigatory Works,RY142,Contract Payments,0020,Samples 14/15,21/11/2014,393930,190,CAP,Kingfisher Environmental Services Ltd,04738V
Gloucester City Council,23UE,Equalities,EH102,Fees For Services Received,5350,Festive Friends Account,21/11/2014,394285,500,NET,Barton & Tredworth Neighbourhood Partnership,09679L
Gloucester City Council,23UE,Financial Services,RT200,Training Course Fees,5367,"26/03/2014, accounting for new regime",21/11/2014,394042,245,NET,Cipfa Business Limited,09260F
Gloucester City Council,23UE,Gloucester Guildhall,LA100,Security Services Fees,5351,Membership Aug-Oct 2014,21/11/2014,394041,91,NET,Gloucester City Safe,14709J
Gloucester City Council,23UE,Group Mgr Cult Ser & Tourism,GR102,Consultants Fees,5349,Project Team Costs,21/11/2014,394048,7218.75,NET,Michael & Partners Limited,15101Z
Gloucester City Council,23UE,Guildhall Bar And Caf�,LA210,Catering Provisions -Food,5110,Food,21/11/2014,394254,123.48,NET,Woodward Foodservice,10714F
Gloucester City Council,23UE,Guildhall Bar And Caf�,LA210,Catering Provisions -Food,5110,Food Oct 2014,21/11/2014,394251,135.44,NET,Woody's Fruit & Veg,11798L
Gloucester City Council,23UE,Guildhall Bar And Caf�,LA210,Catering Provisions -Food,5110,Milk,21/11/2014,394239,4.96,NET,Total Produce Gloucester,12645E
Gloucester City Council,23UE,Guildhall Bar And Caf�,LA210,Catering Provisions -Food,5110,Milk,21/11/2014,394240,4.96,NET,Total Produce Gloucester,12645E
Gloucester City Council,23UE,Guildhall Bar And Caf�,LA210,Catering Provisions -Food,5110,Milk,21/11/2014,394241,4.96,NET,Total Produce Gloucester,12645E
Gloucester City Council,23UE,Guildhall Bar And Caf�,LA210,Catering Provisions -Food,5110,Milk,21/11/2014,394242,4.96,NET,Total Produce Gloucester,12645E
Gloucester City Council,23UE,Guildhall Bar And Caf�,LA210,Catering Provisions -Food,5110,Milk,21/11/2014,394243,4.96,NET,Total Produce Gloucester,12645E
Gloucester City Council,23UE,Guildhall Bar And Caf�,LA210,Catering Provisions -Food,5110,Milk,21/11/2014,394244,4.96,NET,Total Produce Gloucester,12645E
Gloucester City Council,23UE,Guildhall Bar And Caf�,LA210,Catering Provisions -Food,5110,Milk,21/11/2014,394245,4.96,NET,Total Produce Gloucester,12645E
Gloucester City Council,23UE,Guildhall Bar And Caf�,LA210,Catering Provisions -Food,5110,Milk,21/11/2014,394246,4.96,NET,Total Produce Gloucester,12645E
Gloucester City Council,23UE,Guildhall Cinema,LA202,Fees For Services Received,5350,Film Brochures,21/11/2014,394046,168.75,NET,Cinema Projection Services,14502K
Gloucester City Council,23UE,Kings Quarter,RY146,Contract Payments,0020,Consultancy Fees,21/11/2014,394045,1377.45,CAP,Lavat Consulting Ltd,02836N
Gloucester City Council,23UE,Legal Services,RS200,Basic Pay - Temporary Staff,2751,Temporary Staff w/e 14/11/2014,21/11/2014,394047,516.89,NET,Sellick Partnership Group Ltd,11057C
Gloucester City Council,23UE,Off Street Car Parks,PP110,General Repair/Maint Buildings,3000,"Longsmith St Car Park, repairs",21/11/2014,393949,533.62,NET,Rf Gardiner Limited,12299B
Gloucester City Council,23UE,Off Street Car Parks,PP110,General Repair/Maint Buildings,3000,"Longsmith St Car Park, repairs",21/11/2014,393950,502.92,NET,Rf Gardiner Limited,12299B
Gloucester City Council,23UE,The Fleece,RB530,General Repair/Maint Buildings,3000,Fleece Hotel,21/11/2014,394043,1696.89,NET,Wring Group Ltd,12336X
Gloucester City Council,23UE,REDACTED,REDACTED,REDACTED,REDACTED,REDACTED,21/11/2014,REDACTED,46,NET,REDACTED,REDACTED
Gloucester City Council,23UE,Advance City Attractions,LT109,Materials For Sale,5080,Pink Vouchers Redeemed Oct 14,24/11/2014,393943,26.46,NET,Blenheim Palace Visitors Partnership,10749K
Gloucester City Council,23UE,Aspire Admin Charges,LC105,Contracted Services,6970,Management fees November 2014,24/11/2014,393891,71458.92,NET,Aspire Sports & Cultural Trust,08135V
Gloucester City Council,23UE,Aspire Admin Charges,LC105,Other Minor Income,9900,BAILIFF PAYMENTS 07/11/14,24/11/2014,394303,14.6,NET,Aspire Sports & Cultural Trust,08135V
Gloucester City Council,23UE,Aspire Admin Charges,LC105,Security Services Fees,5351,Services Dec 2014,24/11/2014,394051,176.34,NET,G4s Cash Solutions (Uk) Ltd,04290V
Gloucester City Council,23UE,Business Transformation & Tech,RT700,Computer Software <5000,5425,Uniform Orbit Software,24/11/2014,393273,10800,NET,Idox Group,07229U
Gloucester City Council,23UE,Cems/Crems Admin,HC100,Security Services Fees,5351,Services Dec 2014,24/11/2014,394051,100.51,NET,G4s Cash Solutions (Uk) Ltd,04290V
Gloucester City Council,23UE,City Museum And Art Gallery,LM200,Security Services Fees,5351,Services Dec 2014,24/11/2014,394051,88.17,NET,G4s Cash Solutions (Uk) Ltd,04290V
Gloucester City Council,23UE,Civica Admin Charges,RT105,Postages,5400,Post 29/09 - 10/10 2014,24/11/2014,394227,1200.62,NET,Royal Mail S.Wales & South West,35830S
Gloucester City Council,23UE,Civic Admin And Hospitality,RC210,Hospitality,5122,Advertisements 18/09/2014,24/11/2014,391237,233.73,NET,Local World Ltd,08556P
Gloucester City Council,23UE,Client Revs & Bens Contract,RT240,Bailiffs Fees,5368,VAT due on statutory fees,24/11/2014,394039,0,NET,Bristow & Sutor,05450M
Gloucester City Council,23UE,Client Revs & Bens Contract,RT240,Bailiffs Fees,5368,VAT due on statutory fees,24/11/2014,394040,437.73,NET,Bristow & Sutor,05450M
Gloucester City Council,23UE,Client Revs & Bens Contract,RT240,Bailiffs Fees,5368,VAT on fees collected,24/11/2014,394029,0,NET,Phoenix Commercial Collections Ltd,13435J
Gloucester City Council,23UE,Client Revs & Bens Contract,RT240,Bailiffs Fees,5368,VAT on fees collected,24/11/2014,394030,0,NET,Phoenix Commercial Collections Ltd,13435J
Gloucester City Council,23UE,Client Revs & Bens Contract,RT240,Bailiffs Fees,5368,VAT on fees collected,24/11/2014,394031,0,NET,Phoenix Commercial Collections Ltd,13435J
Gloucester City Council,23UE,Client Revs & Bens Contract,RT240,Security Services Fees,5351,Services Dec 2014,24/11/2014,394051,263.38,NET,G4s Cash Solutions (Uk) Ltd,04290V
Gloucester City Council,23UE,Contact Centre,RB300,Basic Pay -Admin /Prof Staff,2601,Temporary Staff 14/11/2014,24/11/2014,394229,963.38,NET,One To One Recruitment,04752H
Gloucester City Council,23UE,Council Streetcare Team,HI101,Maint Of Grounds - General,3030,"Tuffley Park, remove limb from tree",24/11/2014,393942,85,NET,Greenfields Garden Services Ltd,48130G
Gloucester City Council,23UE,Council Streetcare Team,HI101,Maint Of Grounds - General,3030,"Tuffley Park, repairs",24/11/2014,393941,947.05,NET,Greenfields Garden Services Ltd,48130G
Gloucester City Council,23UE,Council Streetcare Team,HI101,Maint Of Paths/Hardstandings,3056,"Tuffley Park, repairs",24/11/2014,393941,224,NET,Greenfields Garden Services Ltd,48130G
Gloucester City Council,23UE,Disabled Facilities Grants,CY013,Disabled Facility Grants,0074,Disabled Facilities Grant works,24/11/2014,394255,3890,CAP,L Coward & Son Ltd,47989M
Gloucester City Council,23UE,Disabled Facilities Grants,CY013,Disabled Facility Grants,0074,Disabled Facilities Grant works,24/11/2014,394226,3930.25,CAP,Nks Contracts (Central) Ltd,56355E
Gloucester City Council,23UE,Docks Complex - Services,RB100,Cleaning Materials,3600,Cleaning Materials,24/11/2014,392508,72.51,NET,Core Hygiene Ltd,03885P
Gloucester City Council,23UE,Folk Museum,LM210,Security Services Fees,5351,Services Dec 2014,24/11/2014,394051,88.17,NET,G4s Cash Solutions (Uk) Ltd,04290V
Gloucester City Council,23UE,General Works Fund,RY203,Contract Payments,0020,Lift Survey,24/11/2014,393245,589.4,CAP,Ilecs Limited,15028H
Gloucester City Council,23UE,Gl1 Emergency Works,RY160,Contract Payments,0020,"GL1, Flat Roof Repairs",24/11/2014,394026,275,CAP,Goddard Consulting Llp,10598G
Gloucester City Council,23UE,Gloucester Guildhall,LA100,Cleaning Materials,3600,Nviroclean,24/11/2014,392912,98,NET,Gentworks Ltd,10388W
Gloucester City Council,23UE,Gloucester Guildhall,LA100,Security Services Fees,5351,Services Dec 2014,24/11/2014,394051,88.17,NET,G4s Cash Solutions (Uk) Ltd,04290V
Gloucester City Council,23UE,Guildhall Cinema,LA202,Fees For Services Received,5350,Monthly film charge,24/11/2014,393685,214.24,NET,Nft Logistics Ltd,13505N
Gloucester City Council,23UE,REDACTED,REDACTED,REDACTED,REDACTED,REDACTED,24/11/2014,REDACTED,100,NET,REDACTED,REDACTED
Gloucester City Council,23UE,Investment Property,RB500,Lift Maintenance,3051,Engineer 05/11/2014,24/11/2014,393967,114.87,NET,Pickerings Europe Ltd*,58816U
Gloucester City Council,23UE,Investment Property,RB500,Repair/Maint Of Fixed Plant,3006,Maintenance 14/15,24/11/2014,393353,556.21,NET,Gea Denco Ltd,57271C
Gloucester City Council,23UE,Stationery Services,RS150,Stationery,5302,Stationary,24/11/2014,393915,62.2,NET,Lyreco Uk Ltd,11746G
Gloucester City Council,23UE,Superbreak,LT104,Materials For Sale,5080,Birmingham 06/01/2015,24/11/2014,394038,52,NET,Superbreak Mini Holidays,00712D
Gloucester City Council,23UE,Superbreak,LT104,Sale Of Goods And Services,9230,Birmingham 06/01/2015,24/11/2014,394038,-4.33,NET,Superbreak Mini Holidays,00712D
Gloucester City Council,23UE,The Arbor,HC501,Catering Provisions -Food,5110,KITCHENWARE,24/11/2014,393546,14,NET,Caffeica Ltd,11923J
Gloucester City Council,23UE,Tourism Marketing,LT100,Security Services Fees,5351,Services Dec 2014,24/11/2014,394051,88.17,NET,G4s Cash Solutions (Uk) Ltd,04290V
Gloucester City Council,23UE,Unallocated It,RY525,Contract Payments,0020,Uniform Orbit Software,24/11/2014,393273,66775,CAP,Idox Group,07229U
Gloucester City Council,23UE,Blackfriars,LA609,Cleaning Materials,3600,Cover Cleaning 29/10/2014,25/11/2014,394176,325,NET,Into Cleaning,14609P
Gloucester City Council,23UE,REDACTED,REDACTED,REDACTED,REDACTED,REDACTED,25/11/2014,REDACTED,35,NET,REDACTED,REDACTED
Gloucester City Council,23UE,Blackfriars Catering,LA220,Catering Provisions -Liquor,5111,Liquor,25/11/2014,394207,380.29,NET,Cellar Supplies Cheltenham Ltd,01563L
Gloucester City Council,23UE,Building Control,PT400,Basic Pay - Temporary Staff,2751,Temporary Staff w/e 02/11/2014,25/11/2014,393602,1530.94,NET,The Oyster Partnership Limited,14900T
Gloucester City Council,23UE,Building Control,PT400,Basic Pay - Temporary Staff,2751,Temporary Staff w/e 26/10/2014,25/11/2014,393267,1525.67,NET,The Oyster Partnership Limited,14900T
Gloucester City Council,23UE,Building Control,PT400,Basic Pay - Temporary Staff,2751,Temporary Staff w/e 02/11/2014,25/11/2014,393621,1634.8,NET,The Oyster Partnership Limited,14900T
Gloucester City Council,23UE,Building Control,PT400,Basic Pay - Temporary Staff,2751,Temporary Staff w/e 26/10/2014,25/11/2014,393266,1614.85,NET,The Oyster Partnership Limited,14900T
Gloucester City Council,23UE,Cemeteries,HC300,Operational Materials,5070,Lamps,25/11/2014,394279,69.78,NET,Mitchells (Gloucester) Ltd,30160U
Gloucester City Council,23UE,Cemeteries,HC300,"Seeds, Trees, Plants, Shrubs",3028,Flowers,25/11/2014,394179,66,NET,Nature First Ltd,48626V
Gloucester City Council,23UE,City Museum And Art Gallery,LM200,Publications For Sale,5064,Books,25/11/2014,394182,100.56,NET,Grantham Book Services,13828J
Gloucester City Council,23UE,City Museum And Art Gallery,LM200,Publications For Sale,5064,Books,25/11/2014,394184,33.55,NET,Grantham Book Services,13828J
Gloucester City Council,23UE,City Museum And Art Gallery,LM200,Publications For Sale,5064,Books,25/11/2014,394185,311.55,NET,Grantham Book Services,13828J
Gloucester City Council,23UE,City Museum Catering,LM202,Catering Provisions -Food,5110,Espresso Machine Rental Oct 14,25/11/2014,394206,135,NET,La Spaziale Uk Ltd,11823P
Gloucester City Council,23UE,Civic Admin And Hospitality,RC210,Hospitality,5122,Catering & Refreshments 02/11/2014,25/11/2014,394172,231,NET,Catercater Ltd,08620G
Gloucester City Council,23UE,Civic Admin And Hospitality,RC210,Other Minor Supplies Services,5590,Arrangement 27/07/2013,25/11/2014,394180,62.5,NET,Plantation Florists,01950Z
Gloucester City Council,23UE,Client Revs & Bens Contract,RT240,Fees For Services Received,5350,"11/10/2014, Removal of furniture",25/11/2014,394188,500,NET,Advanced Removals & Storage Ltd,57142R
Gloucester City Council,23UE,Council Streetcare Team,HI101,Operational Equipment <5000,5012,Boughton Way,25/11/2014,394163,135,NET,Enterprise (Aol) Ltd,06695G
Gloucester City Council,23UE,Council Streetcare Team,HI101,Operational Equipment <5000,5012,Flower Way,25/11/2014,394164,135,NET,Enterprise (Aol) Ltd,06695G
Gloucester City Council,23UE,Countryside Unit,LP201,Safety Equipment,5013,Helmets,25/11/2014,394171,4.97,NET,Severnside Safety Supplies Ltd,57132O
Gloucester City Council,23UE,Crematorium,HC200,"Seeds, Trees, Plants, Shrubs",3028,Rose Bushes,25/11/2014,394033,14.98,NET,Highfield Garden Centres Ltd,48436C
Gloucester City Council,23UE,Development Management,PT200,Advertising And Publicity,5702,Advertisement 06/11/2014,25/11/2014,393611,262.94,NET,Local World Ltd,08556P
Gloucester City Council,23UE,Development Management,PT200,Microfilming / Cd-Rom Storage,5330,Storage October 2014,25/11/2014,394215,22,NET,Transmedia Technology Ltd,08635T
Gloucester City Council,23UE,Disabled Facilities Grants,CY013,Disabled Facility Grants,0074,MDF5049,25/11/2014,394304,1945,CAP,Tpg Disableaids,51324R
Gloucester City Council,23UE,Environmental Planning,LM340,Clothing,5200,jackets,25/11/2014,392483,49.2,NET,Safpro Industrial Supply Co,39190W
Gloucester City Council,23UE,Financial Services,RT200,Publications,5060,Code of Practice Book 2014/15,25/11/2014,394162,478.75,NET,Cipfa Business Limited,09260F
Gloucester City Council,23UE,Flooding And Drainage,HE306,Maint Of Grounds - General,3030,Black Bridge Clearance,25/11/2014,394218,120,NET,Tcv T/A The Conservation Volunteers,55897V
Gloucester City Council,23UE,Flooding And Drainage,HE306,Maint Of Grounds - General,3030,Milton Avenue Clearance,25/11/2014,394201,240,NET,Tcv T/A The Conservation Volunteers,55897V
Gloucester City Council,23UE,Folk Museum,LM210,Publications For Sale,5064,Books,25/11/2014,394182,71.99,NET,Grantham Book Services,13828J
Gloucester City Council,23UE,Folk Museum,LM210,Publications For Sale,5064,Books,25/11/2014,394183,47.9,NET,Grantham Book Services,13828J
Gloucester City Council,23UE,Folk Museum,LM210,Publications For Sale,5064,Books,25/11/2014,394185,158.15,NET,Grantham Book Services,13828J
Gloucester City Council,23UE,Folk Museum,LM210,Publications For Sale,5064,Books,25/11/2014,394186,28.75,NET,Grantham Book Services,13828J
Gloucester City Council,23UE,General Drainage Works,PY241,Contract Payments,0020,Topographical Survey,25/11/2014,394173,455,CAP,Monument Geomatics,11065F
Gloucester City Council,23UE,Grants To Voluntary Sector,FG100,Grants To Voluntary Orgs-Rents,7100,Hire of Community Centre Jun-Aug 13,25/11/2014,394190,234,NET,Barton & Tredworth Developments Ltd,58165T
Gloucester City Council,23UE,Grants To Voluntary Sector,FG100,Grants To Voluntary Orgs-Rents,7100,Hire of Barton Community Centre Oct 14,25/11/2014,394189,97.5,NET,Barton & Tredworth Developments,03660RV
Gloucester City Council,23UE,Grants To Voluntary Sector,FG100,Members Allocation Fund,7100F,Members Allocation Fund,25/11/2014,394343,1000,NET,Innervation Trust,15056C
Gloucester City Council,23UE,Guildhall Bar And Caf�,LA210,Catering Provisions -Liquor,5111,Gloucester Gold Case,25/11/2014,394202,114,NET,Gloucester Brewery,13373F
Gloucester City Council,23UE,Guildhall Bar And Caf�,LA210,Catering Provisions -Liquor,5111,Liquor,25/11/2014,394208,1232.6,NET,Cellar Supplies Cheltenham Ltd,01563L
Gloucester City Council,23UE,Guildhall Bar And Caf�,LA210,Hire Of Equipment,5020,On Site Service 29/09/2014,25/11/2014,394204,68.5,NET,Dl Spencer & Company Ltd,11885R
Gloucester City Council,23UE,Guildhall Bar And Caf�,LA210,Hire Of Equipment,5020,"Stock Audit, 23/10/2014",25/11/2014,394205,90,NET,Fea Audits,08888J
Gloucester City Council,23UE,Guildhall Bar And Caf�,LA210,Other Catering Provisions,5112,Plastic Tumblers,25/11/2014,394203,346,NET,Gerry Dance Disposables Ltd,54579Y
Gloucester City Council,23UE,REDACTED,REDACTED,REDACTED,REDACTED,REDACTED,25/11/2014,REDACTED,100,NET,REDACTED,REDACTED
Gloucester City Council,23UE,REDACTED,REDACTED,REDACTED,REDACTED,REDACTED,25/11/2014,REDACTED,378.28,NET,REDACTED,REDACTED
Gloucester City Council,23UE,REDACTED,REDACTED,REDACTED,REDACTED,REDACTED,25/11/2014,REDACTED,0,NET,REDACTED,REDACTED
Gloucester City Council,23UE,Guildhall Events,LA200,Fees For Services Received,5350,Months News October 2014,25/11/2014,394178,32.9,NET,W H Smith Ltd,40860M
Gloucester City Council,23UE,Homelessness,CH120,Fees For Services Received,5350,Medical Form,25/11/2014,394191,20.5,NET,London Road Medical Practice,03814P
Gloucester City Council,23UE,Homelessness,CH120,Removal And Storage Fees,5513,"13/11/2014, Collection of furniture",25/11/2014,394196,90,NET,Advanced Removals & Storage Ltd,57142R
Gloucester City Council,23UE,Homelessness,CH120,Removal And Storage Fees,5513,Storage Charges Oct 2014,25/11/2014,394194,39.11,NET,Advanced Removals & Storage Ltd,57142R
Gloucester City Council,23UE,Homelessness,CH120,Removal And Storage Fees,5513,Storage Charges Oct 2014,25/11/2014,394195,273.75,NET,Advanced Removals & Storage Ltd,57142R
Gloucester City Council,23UE,Homelessness,CH120,Removal And Storage Fees,5513,Storage Charges Oct 2014,25/11/2014,394197,25.71,NET,Advanced Removals & Storage Ltd,57142R
Gloucester City Council,23UE,Homelessness Prevention,CH122,Fees For Services Received,5350,Lawtel Services Oct 2014,25/11/2014,394198,2381.82,NET,Thomson Reuters,43110M
Gloucester City Council,23UE,Investment Property,RB500,General Repair/Maint Buildings,3000,"Painswick Road, fly tipping",25/11/2014,393919,150,NET,Rj Contracting (Environmental) Ltd,07429H
Gloucester City Council,23UE,Land Searches,RO300,Fees For Services Received,5350,Land Search Charges Quarter 2,25/11/2014,392849,3040,NET,Gloucestershire County Council,18650D
Gloucester City Council,23UE,Legal Services,RS200,Basic Pay - Temporary Staff,2751,Temporary Staff w/e 02/11/2014,25/11/2014,393667,1250.42,NET,Venn Group Ltd,04339P
Gloucester City Council,23UE,Legal Services,RS200,Basic Pay - Temporary Staff,2751,Temporary Staff w/e 26/10/2014,25/11/2014,393302,1117.52,NET,Venn Group Ltd,04339P
Gloucester City Council,23UE,Legal Services,RS200,Basic Pay - Temporary Staff,2751,Temporary Staff w/e 07/11/2014,25/11/2014,393671,629.84,NET,Sellick Partnership Group Ltd,11057C
Gloucester City Council,23UE,Legal Services,RS200,Basic Pay - Temporary Staff,2751,Temporary Staff w/e 31/10/2014,25/11/2014,393670,669.36,NET,Sellick Partnership Group Ltd,11057C
Gloucester City Council,23UE,Legal Services,RS200,Basic Pay - Temporary Staff,2751,Temporary Staff w/e 02/11/2014,25/11/2014,393666,1549.93,NET,Venn Group Ltd,04339P
Gloucester City Council,23UE,Legal Services,RS200,Basic Pay - Temporary Staff,2751,Temporary Staff w/e 02/11/2014,25/11/2014,393892,487.29,NET,Premiere Employment Ltd,55468Z
Gloucester City Council,23UE,Legal Services,RS200,Basic Pay - Temporary Staff,2751,Temporary Staff w/e 09/11/2014,25/11/2014,394200,487.29,NET,Premiere Employment Ltd,55468Z
Gloucester City Council,23UE,REDACTED,REDACTED,REDACTED,REDACTED,REDACTED,25/11/2014,REDACTED,21,NET,REDACTED,REDACTED
Gloucester City Council,23UE,REDACTED,REDACTED,REDACTED,REDACTED,REDACTED,25/11/2014,REDACTED,900,CAP,REDACTED,REDACTED
Gloucester City Council,23UE,Nms Contract,HI102,Contracted Services,6970,Pension August 2014,25/11/2014,392176,10456.88,NET,Enterprise (Aol) Ltd,06695G
Gloucester City Council,23UE,Nms Contract,HI102,Contracted Services,6970,Pension Sept 2014,25/11/2014,393758,10906.09,NET,Enterprise (Aol) Ltd,06695G
Gloucester City Council,23UE,Nms Contract,HI102,Contracted Services,6970,Wood Recycling,25/11/2014,394168,1964.2,NET,Enterprise (Aol) Ltd,06695G
Gloucester City Council,23UE,Parks Contract Management,LP100,Maint Of Grounds - General,3030,Alma Place,25/11/2014,394167,93.96,NET,Enterprise (Aol) Ltd,06695G
Gloucester City Council,23UE,Parks Contract Management,LP100,Maint Of Grounds - General,3030,Armscroft Park,25/11/2014,394166,205.2,NET,Enterprise (Aol) Ltd,06695G
Gloucester City Council,23UE,Perennial Planting Enterprise,LY133,Contract Payments,0020,Gloucester Park,25/11/2014,394165,126.9,CAP,Enterprise (Aol) Ltd,06695G
Gloucester City Council,23UE,Planning Policy,PT300,Basic Pay - Temporary Staff,2751,Temporary Staff w/e 26/10/2014,25/11/2014,393268,2105,NET,The Oyster Partnership Limited,14900T
Gloucester City Council,23UE,Retail Market - Landlord,HM300,Operational Equipment <5000,5012,Rental Nov 2014,25/11/2014,394216,280.56,NET,System Rental Uk Ltd,03239E
Gloucester City Council,23UE,S106 Hempsted Way Play Area,LY156,Contract Payments,0020,Topographical Survey,25/11/2014,394174,495,CAP,Monument Geomatics,11065F
Gloucester City Council,23UE,REDACTED,REDACTED,REDACTED,REDACTED,REDACTED,26/11/2014,REDACTED,386.5,CAP,REDACTED,REDACTED
Gloucester City Council,23UE,REDACTED,REDACTED,REDACTED,REDACTED,REDACTED,26/11/2014,REDACTED,337.5,NET,REDACTED,REDACTED
Gloucester City Council,23UE,Cctv Revenue Budget,FP501,Security Equipment Serv/Repair,3038,Vehicle & Operative,26/11/2014,394221,350,NET,Southern Electric Contracting Ltd*,08337R
Gloucester City Council,23UE,Cemeteries,HC300,Operational Materials,5070,Bradstone Bag,26/11/2014,394027,74.5,NET,Buildbase Ltd*,03692D
Gloucester City Council,23UE,Cemeteries,HC300,Operational Materials,5070,Bradstone Bag,26/11/2014,394028,74.5,NET,Buildbase Ltd*,03692D
Gloucester City Council,23UE,City Museum And Art Gallery,LM200,Exhibits And Collections,5038,DATA HEALTH CHECK,26/11/2014,394434,50,NET,Modes Users Association,52797E
Gloucester City Council,23UE,Community Safety Projects,FP500,Basic Pay - Temporary Staff,2751,Temporary Staff w/e 31/10/2014,26/11/2014,393961,540.2,NET,Travail Employment Ltd,49371W
Gloucester City Council,23UE,REDACTED,REDACTED,REDACTED,REDACTED,REDACTED,26/11/2014,REDACTED,280,NET,REDACTED,REDACTED
Gloucester City Council,23UE,Countryside Unit,LP201,Routine R And M - Vehicles,4011,Parts,26/11/2014,394449,373.08,NET,Commercial Mower Supplies,06799D
Gloucester City Council,23UE,Disabled Facilities Grants,CY013,Disabled Facility Grants,0074,MDF5118,26/11/2014,394485,1145,CAP,Dolphin Lifts (Western) Ltd,10661B
Gloucester City Council,23UE,Disabled Facilities Grants,CY013,Disabled Facility Grants,0074,Works,26/11/2014,394462,5046.23,CAP,Davey's Building Maintenance,57010K
Gloucester City Council,23UE,Disabled Facilities Grants,CY013,Disabled Facility Grants,0074,Disabled Facilities Grant works,26/11/2014,394455,3765,CAP,L B & C B Taylor (Builders),02000E
Gloucester City Council,23UE,Docks Complex - Services,RB100,Repair/Maint Of Fixed Plant,3006,Maintenance Inspection 14/11/2014,26/11/2014,394457,408,NET,Cooltherm,06087Z
Gloucester City Council,23UE,Docks Complex - Services,RB100,Repair/Maint Of Fixed Plant,3006,Maintenance Inspection 19/11/2014,26/11/2014,394458,210,NET,Cooltherm,06087Z
Gloucester City Council,23UE,Environmental Planning,LM340,Other Minor Supplies Services,5590,Membership 2014/15,26/11/2014,394448,140,NET,Algao (Uk),00963Z
Gloucester City Council,23UE,Events,LT410,Fees For Services Received,5350,CARRIED ON THE WIND GRANT PAYMENT,26/11/2014,394433,4000,NET,Gloucestershire People Theatre,14954T
Gloucester City Council,23UE,External Communications,RC431,Printing,5300,CITYLIFE AUTUMN 2014,26/11/2014,394432,6764,NET,Idp Design & Print,05313Z
Gloucester City Council,23UE,Grants To Voluntary Sector,FG100,Members Allocation Fund,7100F,MEMBERS PAYMENT,26/11/2014,394482,300,NET,Hempsted Village Hall,55138A
Gloucester City Council,23UE,REDACTED,REDACTED,REDACTED,REDACTED,REDACTED,26/11/2014,REDACTED,350,NET,REDACTED,REDACTED
Gloucester City Council,23UE,REDACTED,REDACTED,REDACTED,REDACTED,REDACTED,26/11/2014,REDACTED,300,NET,REDACTED,REDACTED
Gloucester City Council,23UE,REDACTED,REDACTED,REDACTED,REDACTED,REDACTED,26/11/2014,REDACTED,700,NET,REDACTED,REDACTED
Gloucester City Council,23UE,REDACTED,REDACTED,REDACTED,REDACTED,REDACTED,26/11/2014,REDACTED,3402.4,NET,REDACTED,REDACTED
Gloucester City Council,23UE,REDACTED,REDACTED,REDACTED,REDACTED,REDACTED,26/11/2014,REDACTED,110,NET,REDACTED,REDACTED
Gloucester City Council,23UE,REDACTED,REDACTED,REDACTED,REDACTED,REDACTED,26/11/2014,REDACTED,50,NET,REDACTED,REDACTED
Gloucester City Council,23UE,REDACTED,REDACTED,REDACTED,REDACTED,REDACTED,26/11/2014,REDACTED,72,NET,REDACTED,REDACTED
Gloucester City Council,23UE,REDACTED,REDACTED,REDACTED,REDACTED,REDACTED,26/11/2014,REDACTED,504,NET,REDACTED,REDACTED
Gloucester City Council,23UE,REDACTED,REDACTED,REDACTED,REDACTED,REDACTED,26/11/2014,REDACTED,120,NET,REDACTED,REDACTED
Gloucester City Council,23UE,REDACTED,REDACTED,REDACTED,REDACTED,REDACTED,26/11/2014,REDACTED,51.5,NET,REDACTED,REDACTED
Gloucester City Council,23UE,REDACTED,REDACTED,REDACTED,REDACTED,REDACTED,26/11/2014,REDACTED,395.5,NET,REDACTED,REDACTED
Gloucester City Council,23UE,REDACTED,REDACTED,REDACTED,REDACTED,REDACTED,26/11/2014,REDACTED,263.08,NET,REDACTED,REDACTED
Gloucester City Council,23UE,REDACTED,REDACTED,REDACTED,REDACTED,REDACTED,26/11/2014,REDACTED,280,NET,REDACTED,REDACTED
Gloucester City Council,23UE,Investment Property,RB500,Lift Maintenance,3051,Engineer 04/11/2014,26/11/2014,394456,57.44,NET,Pickerings Europe Ltd*,58816U
Gloucester City Council,23UE,Kings Quarter Redevelopment,RB600,Fees For Services Received,5350,CONSULTANT SERVICES RE TRANSPORT HUB,26/11/2014,394444,3625,NET,Aecom,12443V
Gloucester City Council,23UE,Legal Services,RS200,Basic Pay - Temporary Staff,2751,Temporary Staff 23/11/14,26/11/2014,394353,550,NET,Paystream My Max Limited,15049Z
Gloucester City Council,23UE,Legal Services,RS200,Basic Pay - Temporary Staff,2751,Temporary Staff w/e 16/11/14,26/11/2014,394354,550,NET,Paystream My Max Limited,15049Z
Gloucester City Council,23UE,Legal Services,RS200,Basic Pay - Temporary Staff,2751,Temporary Staff w/e 9/11/14,26/11/2014,394355,550,NET,Paystream My Max Limited,15049Z
Gloucester City Council,23UE,Pest Control,HD400,Fees For Services Received,5350,"Pest Control Treatments,",26/11/2014,394437,3370.83,NET,Falconry Services Ltd,10692P
Gloucester City Council,23UE,Play Area Refurbishment,LY071,Contract Payments,0020,"VAT element, profesional services jul 4",26/11/2014,394469,0,CAP,Bruton Knowles,57534T
Gloucester City Council,23UE,Postal Services,RS120,Postages,5400,Window Envelopes,26/11/2014,394438,451.8,NET,Encore Envelopes Ltd,13782H
Gloucester City Council,23UE,Postal Services,RS120,Postages,5400,Window Envelopes,26/11/2014,394439,110.5,NET,Encore Envelopes Ltd,13782H
Gloucester City Council,23UE,St Michaels Tower,GY016,Contract Payments,0020,Stone Conservation Works,26/11/2014,393945,6453.12,CAP,Carrek Limited,14860D
Gloucester City Council,23UE,Training Schemes,ET100,Fees For Services Received,5350,NVQ assessment fees,26/11/2014,394451,5200,NET,The Gold Standard,56141C
Gloucester City Council,23UE,Treasury Management,VR110,Planning Direct Action,5347,Fees & Expenses June-August 2014,26/11/2014,393940,6630.22,NET,Capita Business Services Limited*,54095C
Gloucester City Council,23UE,REDACTED,REDACTED,REDACTED,REDACTED,REDACTED,27/11/2014,REDACTED,125,NET,REDACTED,REDACTED
Gloucester City Council,23UE,REDACTED,REDACTED,REDACTED,REDACTED,REDACTED,27/11/2014,REDACTED,175,NET,REDACTED,REDACTED
Gloucester City Council,23UE,REDACTED,REDACTED,REDACTED,REDACTED,REDACTED,27/11/2014,REDACTED,-15.63,NET,REDACTED,REDACTED
Gloucester City Council,23UE,REDACTED,REDACTED,REDACTED,REDACTED,REDACTED,27/11/2014,REDACTED,-21.88,NET,REDACTED,REDACTED
Gloucester City Council,23UE,City Museum And Art Gallery,LM200,Advertising And Publicity,5702,market 22/23 nov 2014,27/11/2014,394599,50,NET,City Centre Community Partnership,11601L
Gloucester City Council,23UE,City Museum And Art Gallery,LM200,Publications For Sale,5064,GOODS FOR RESALE,27/11/2014,394596,400.8,NET,Wild And Wolf Ltd,15010D
Gloucester City Council,23UE,Client Revs & Bens Contract,RT240,Bailiffs Fees,5368,VAT due on statutory fees,27/11/2014,394441,150,NET,Bristow & Sutor,05450M
Gloucester City Council,23UE,Contact Centre,RB300,Operational Equipment <5000,5012,Ultracard PVC Plain,27/11/2014,393926,89.5,NET,Bannerbridge Plc,13703G
Gloucester City Council,23UE,Democratic Services,RS100,Vocational Training,2970,COURSE,27/11/2014,394548,85,NET,Association Of Democratic Services Officers,11883V
Gloucester City Council,23UE,Docks Complex - Services,RB100,General Repair/Maint Buildings,3000,Call out to dishwasher,27/11/2014,394044,384.12,NET,Rs Maintenance,14314N
Gloucester City Council,23UE,Folk Museum,LM210,Subscriptions,5600,GOODS FOR RESALE,27/11/2014,394546,665.4,NET,Westair Reproductions Ltd,47000G
Gloucester City Council,23UE,Guildhall Bar And Caf�,LA210,Catering Provisions -Food,5110,Food w/e 09/11/2014,27/11/2014,393672,65.8,NET,Janes Pantry,24500W
Gloucester City Council,23UE,Guildhall Bar And Caf�,LA210,Catering Provisions -Food,5110,Food w/e 16/11/2014,27/11/2014,394037,32.9,NET,Janes Pantry,24500W
Gloucester City Council,23UE,REDACTED,REDACTED,REDACTED,REDACTED,REDACTED,27/11/2014,REDACTED,2000,NET,REDACTED,REDACTED
Gloucester City Council,23UE,Legal Services,RS200,Fees For Services Received,5350,LLANTHONY SECUNDA,27/11/2014,394640,2712,NET,Veale Wasbrough Vizards Llp,48116A
Gloucester City Council,23UE,Legal Services,RS200,Subscriptions,5600,PC Fees,27/11/2014,394643,704,NET,Law Society,02903Z
Gloucester City Council,23UE,Safer Stronger Communities,FP841,Other Minor Supplies Services,5590,CALENDAR,27/11/2014,394552,722,NET,Icon.Net,52505Z
Gloucester City Council,23UE,Superbreak,LT104,Materials For Sale,5080,Birmingham 22/12/2014,27/11/2014,394447,52,NET,Superbreak Mini Holidays,00712D
Gloucester City Council,23UE,Superbreak,LT104,Sale Of Goods And Services,9230,Birmingham 22/12/2014,27/11/2014,394447,-4.33,NET,Superbreak Mini Holidays,00712D
Gloucester City Council,23UE,The Arbor,HC501,Catering Provisions -Food,5110,Food,27/11/2014,391568,25,NET,Total Produce Gloucester,12645E
Gloucester City Council,23UE,The Arbor,HC501,Catering Provisions -Food,5110,Food,27/11/2014,391569,28.86,NET,Total Produce Gloucester,12645E
Gloucester City Council,23UE,The Arbor,HC501,Catering Provisions -Food,5110,Food,27/11/2014,392632,483.01,NET,3663,55585U
Gloucester City Council,23UE,The Arbor,HC501,Catering Provisions -Food,5110,Food,27/11/2014,393276,398.44,NET,Caffeica Ltd,11923J
Gloucester City Council,23UE,The Arbor,HC501,Catering Provisions -Food,5110,Food,27/11/2014,393751,60.3,NET,Total Produce Gloucester,12645E
Gloucester City Council,23UE,The Arbor,HC501,Catering Provisions -Food,5110,FOOD,27/11/2014,394532,17.74,NET,Total Produce Gloucester,12645E
Gloucester City Council,23UE,The Arbor,HC501,Catering Provisions -Food,5110,FOOD,27/11/2014,394533,9.1,NET,Total Produce Gloucester,12645E
Gloucester City Council,23UE,The Arbor,HC501,Catering Provisions -Food,5110,FOOD,27/11/2014,394535,31.9,NET,Total Produce Gloucester,12645E
Gloucester City Council,23UE,The Arbor,HC501,Catering Provisions -Food,5110,FOOD,27/11/2014,394536,25.84,NET,Total Produce Gloucester,12645E
Gloucester City Council,23UE,The Arbor,HC501,Catering Provisions -Food,5110,FOOD,27/11/2014,394537,20.12,NET,Total Produce Gloucester,12645E
Gloucester City Council,23UE,The Arbor,HC501,Catering Provisions -Food,5110,FOOD,27/11/2014,394538,23.1,NET,Total Produce Gloucester,12645E
Gloucester City Council,23UE,The Arbor,HC501,Catering Provisions -Food,5110,FOOD,27/11/2014,394540,23.27,NET,Total Produce Gloucester,12645E
Gloucester City Council,23UE,The Arbor,HC501,Catering Provisions -Food,5110,FOOD,27/11/2014,394559,12.78,NET,Total Produce Gloucester,12645E
Gloucester City Council,23UE,The Arbor,HC501,Catering Provisions -Food,5110,FOOD,27/11/2014,394560,30.93,NET,Total Produce Gloucester,12645E
Gloucester City Council,23UE,The Arbor,HC501,Catering Provisions -Food,5110,FOOD,27/11/2014,394561,27.31,NET,Total Produce Gloucester,12645E
Gloucester City Council,23UE,The Arbor,HC501,Catering Provisions -Food,5110,FOOD,27/11/2014,394562,14.33,NET,Total Produce Gloucester,12645E
Gloucester City Council,23UE,The Arbor,HC501,Catering Provisions -Food,5110,FOOD,27/11/2014,394564,184.08,NET,3663,55585U
Gloucester City Council,23UE,The Arbor,HC501,Catering Provisions -Food,5110,FOOD,27/11/2014,394566,316.2,NET,3663,55585U
Gloucester City Council,23UE,The Arbor,HC501,Catering Provisions -Food,5110,FOOD,27/11/2014,394567,436.08,NET,3663,55585U
Gloucester City Council,23UE,The Arbor,HC501,Catering Provisions -Food,5110,FOOD,27/11/2014,394587,230.55,NET,3663,55585U
Gloucester City Council,23UE,The Arbor,HC501,Catering Provisions -Food,5110,FOOD,27/11/2014,394588,16.56,NET,3663,55585U
Gloucester City Council,23UE,The Arbor,HC501,Catering Provisions -Food,5110,FOOD,27/11/2014,394589,426.94,NET,3663,55585U
Gloucester City Council,23UE,The Arbor,HC501,Catering Provisions -Food,5110,FOOD,27/11/2014,394590,206.64,NET,3663,55585U
Gloucester City Council,23UE,The Arbor,HC501,Catering Provisions -Food,5110,FOOD,27/11/2014,394591,130.66,NET,3663,55585U
Gloucester City Council,23UE,The Arbor,HC501,Catering Provisions -Food,5110,FOOD,27/11/2014,394593,559.54,NET,3663,55585U
Gloucester City Council,23UE,The Arbor,HC501,Catering Provisions -Food,5110,Food w/e 09/11/2014,27/11/2014,393674,140.22,NET,Janes Pantry,24500W
Gloucester City Council,23UE,The Arbor,HC501,Catering Provisions -Food,5110,Food w/e 16/11/2014,27/11/2014,394035,158.62,NET,Janes Pantry,24500W
Gloucester City Council,23UE,The Arbor,HC501,Cleaning Materials,3600,FOOD,27/11/2014,394565,81.43,NET,3663,55585U
Gloucester City Council,23UE,The Arbor,HC501,Cleaning Materials,3600,FOOD,27/11/2014,394568,51.41,NET,3663,55585U
Gloucester City Council,23UE,The Arbor,HC501,Cleaning Materials,3600,FOOD,27/11/2014,394592,111.17,NET,3663,55585U
Gloucester City Council,23UE,The Arbor,HC501,Other Minor Supplies Services,5590,FLOWERS,27/11/2014,394571,26.4,NET,Carols Florist,01274X
Gloucester City Council,23UE,The Arbor,HC501,Other Minor Supplies Services,5590,FLOWERS,27/11/2014,394572,21.6,NET,Carols Florist,01274X
Gloucester City Council,23UE,The Arbor,HC501,Other Minor Supplies Services,5590,FLOWERS,27/11/2014,394573,19.2,NET,Carols Florist,01274X
Gloucester City Council,23UE,The Arbor,HC501,Other Minor Supplies Services,5590,FLOWERS,27/11/2014,394574,32.4,NET,Carols Florist,01274X
Gloucester City Council,23UE,Utilities,PT502,Electricity Supply,3110,16 COMMERCIAL RD,27/11/2014,394475,4.16,NET,Sse,58445H
Gloucester City Council,23UE,Utilities,PT502,Electricity Supply,3110,STALL 24 EASTGATE MARKET,27/11/2014,394283,33.38,NET,Npower,03929V
Gloucester City Council,23UE,Utilities,PT502,Electricity Supply,3110,STALL 24 EASTGATE MARKET,27/11/2014,394284,34.93,NET,Npower,03929V
Gloucester City Council,23UE,Utilities,PT502,Electricity Supply,3110,UTILITIES TO NOV 2014,27/11/2014,394282,35269.75,NET,West Mercia Energy,11669Z
Gloucester City Council,23UE,Utilities,PT502,Electricity Supply,3110,UTILITIES TO NOV 2014,27/11/2014,394476,4849.38,NET,West Mercia Energy,11669Z
Gloucester City Council,23UE,Utilities,PT502,Gas Supply,3100,UTILITIES TO NOV 2014,27/11/2014,394282,11485.41,NET,West Mercia Energy,11669Z
Gloucester City Council,23UE,Utilities,PT502,Gas Supply,3100,UTILITIES TO NOV 2014,27/11/2014,394476,20024.9,NET,West Mercia Energy,11669Z
Gloucester City Council,23UE,Aspire Admin Charges,LC105,Other Minor Income,9900,BAILIFF PAYMENTS 03/10/14,28/11/2014,394645,145.1,NET,Aspire Sports & Cultural Trust,08135V
Gloucester City Council,23UE,Celebratory Lights,LT302,Christmas Lights,5024,CHRISTMAS DECORATION FIXINGS CONSULTANCY,28/11/2014,394421,320,NET,Peter Goodhind Associates Ltd,18890E
Gloucester City Council,23UE,Cemeteries,HC300,Operational Materials,5070,GLOVES,28/11/2014,394542,119,NET,Safpro Industrial Supply Co,39190W
Gloucester City Council,23UE,Cemeteries,HC300,Purch Vehicles/M. Plant <5000,4000,PADLOCK,28/11/2014,394539,126.3,NET,N & C Building Products Ltd,02054E
Gloucester City Council,23UE,Contact Centre,RB300,Basic Pay -Admin /Prof Staff,2601,STAFF W/E 21/11/14,28/11/2014,394544,1253.67,NET,One To One Recruitment,04752H
Gloucester City Council,23UE,Council Streetcare Team,HI101,Maint Of Grounds - General,3030,EQUIPMENT REPAIR,28/11/2014,394474,230,NET,Ermin Plant Hire & Services Ltd,14150V
Gloucester City Council,23UE,Decent Homes Loans,CY042,Housing Loans,0064,Disabled Facilities Grant works,28/11/2014,394415,9928.93,CAP,T & P Franklin & Sons Ltd,16150A
Gloucester City Council,23UE,Disabled Facilities Grants,CY013,Disabled Facility Grants,0074,Disabled Facilities Grant works,28/11/2014,394551,3650,CAP,Nks Contracts (Central) Ltd,56355E
Gloucester City Council,23UE,Disabled Facilities Grants,CY013,Renovation Grants,0071,Disabled Facilities Grant works,28/11/2014,394594,691.55,CAP,Beard & Tandy,03160V
Gloucester City Council,23UE,Disabled Facilities Grants,CY013,Renovation Grants,0071,Disabled Facilities Grant works,28/11/2014,394598,365,CAP,Beard & Tandy,03160V
Gloucester City Council,23UE,Docks Complex - Catering Servs,RB110,Catering Provisions -Food,5110,Food,28/11/2014,394350,302.06,NET,3663,55585U
Gloucester City Council,23UE,Docks Complex - Services,RB100,Catering Provisions -Food,5110,FOOD,28/11/2014,394550,84.91,NET,Janes Pantry,24500W
Gloucester City Council,23UE,Docks Complex - Services,RB100,Cleaning Materials,3600,Cleaning Materials,28/11/2014,392547,38.41,NET,Core Hygiene Ltd,03885P
Gloucester City Council,23UE,Docks Complex - Services,RB100,Cleaning Materials,3600,Cleaning Materials,28/11/2014,393955,82.97,NET,Core Hygiene Ltd,03885P
Gloucester City Council,23UE,Docks Complex - Services,RB100,Cleaning Materials,3600,CLEANING MATERIALS,28/11/2014,394431,99.66,NET,Core Hygiene Ltd,03885P
Gloucester City Council,23UE,Docks Complex - Services,RB100,General Repair/Maint Buildings,3000,Fees for Licence,28/11/2014,394450,126.56,NET,Ppl,49860Z
Gloucester City Council,23UE,Docks Complex - Services,RB100,General Repair/Maint Buildings,3000,ROLLER BLINDS,28/11/2014,394436,600,NET,Ashleigh & Crystal Blinds,58897R
Gloucester City Council,23UE,Docks Complex - Telephones,RB120,Mobile Phones,5409,PHONE,28/11/2014,394595,119,NET,Everything Everywhere Ltd (T-Mobile),02334V
Gloucester City Council,23UE,Electrical Investigatory Works,RY142,Contract Payments,0020,Fire Alarm System 14/15,28/11/2014,393354,273.37,CAP,Allcoopers Ltd,52921E
Gloucester City Council,23UE,Environmental Planning,LM340,Fees For Services Received,5350,ADVERT 17/11/14,28/11/2014,394553,379.81,NET,Local World Ltd,08556P
Gloucester City Council,23UE,General Works Fund,RY203,Int On Purch Cost -Land,0003,Temporary Staff w/e 09/11/2014,28/11/2014,394225,1026,CAP,Find The Engineer Recruitment Ltd*,12977Z
Gloucester City Council,23UE,General Works Fund,RY203,Int On Purch Cost -Land,0003,Temporary Staff W/E 19/10/14,28/11/2014,394646,532,CAP,Find The Engineer Recruitment Ltd*,12977Z
Gloucester City Council,23UE,Gl1 Emergency Works,RY160,Contract Payments,0020,GL1,28/11/2014,394580,25249.08,CAP,Central Roofing & Building Services Ltd,59480W
Gloucester City Council,23UE,Gloucester Guildhall,LA100,Routine R And M - Vehicles,4011,MOT Test,28/11/2014,394428,65.99,NET,123 Car & Commercial,07651E
Gloucester City Council,23UE,Health Administration,HA200,Vocational Training,2970,PERMITTED DEVELOPMENT WORKSHOP,28/11/2014,394419,114,NET,Tewkesbury Borough Council,43800C
Gloucester City Council,23UE,Kings Sq Paving Emerg Works,RY161,Contract Payments,0020,GL1,28/11/2014,394581,345.8,CAP,Central Roofing & Building Services Ltd,59480W
Gloucester City Council,23UE,Legal Services,RS200,Basic Pay - Temporary Staff,2751,Temporary Staff w/e 16/11/2014,28/11/2014,394460,1219.75,NET,Venn Group Ltd,04339P
Gloucester City Council,23UE,Legal Services,RS200,Basic Pay - Temporary Staff,2751,Temporary Staff W/E 16/11 & 23/11/14,28/11/2014,394361,1618.75,NET,Michael Page International Recruitment Ltd,06601P
Gloucester City Council,23UE,Legal Services,RS200,Basic Pay - Temporary Staff,2751,Temporary Staff w/e 16/11/2014,28/11/2014,394461,1549.93,NET,Venn Group Ltd,04339P
Gloucester City Council,23UE,Managing Director,RE100,Catering Provisions -Food,5110,Event held on 01/10/2014,28/11/2014,394425,56.38,NET,Gloucester Cathedral Enterprises Ltd,50228X
Gloucester City Council,23UE,Shopmobility,PE200,Maintenance Of Equipment,5030,Various Repairs,28/11/2014,393937,274.29,NET,Disabled Care & Mobility,12675V
Gloucester City Council,23UE,St Michaels Tower,GY016,Contract Payments,0020,ST MICHAELS TOWER,28/11/2014,394549,337.5,CAP,Goddard Consulting Llp,10598G
Gloucester City Council,23UE,Summer Festival,LT300,Conference/Meeting Expenses,5510,Bid Writing Master Class 28/11/2014,28/11/2014,394429,60,NET,Gavca,06129J
Gloucester City Council,23UE,Summer Festival,LT300,Routine R And M - Vehicles,4011,MOT Test,28/11/2014,394428,45,NET,123 Car & Commercial,07651E
Gloucester City Council,23UE,The Arbor,HC501,Catering Provisions -Liquor,5111,DRINK,28/11/2014,394534,118.37,NET,Cellar Supplies Cheltenham Ltd,01563L
Gloucester City Council,23UE,The Arbor,HC501,Cleaning Materials,3600,FOOD,28/11/2014,394563,22.13,NET,3663,55585U
Gloucester City Council,23UE,Ugly Structures,GY010,Contract Payments,0020,09/09/2014,28/11/2014,394278,95,CAP,Asm Scaffolding Services Ltd,14573K
Gloucester City Council,23UE,Ugly Structures,GY010,Contract Payments,0020,Adaptions to external scaffolding,28/11/2014,391447,995,CAP,Asm Scaffolding Services Ltd,14573K
Gloucester City Council,23UE,Ugly Structures,GY010,Contract Payments,0020,"Additional Scaffolding, 01/10/2014",28/11/2014,392931,450,CAP,Asm Scaffolding Services Ltd,14573K
Gloucester City Council,23UE,Ugly Structures,GY010,Contract Payments,0020,"Scaffolding, St michaels tower",28/11/2014,392929,1980,CAP,Asm Scaffolding Services Ltd,14573K
Gloucester City Council,23UE,Ugly Structures,GY010,Contract Payments,0020,"Site Visit, 02/09/2014",28/11/2014,394192,95,CAP,Asm Scaffolding Services Ltd,14573K
Gloucester City Council,23UE,Ugly Structures,GY010,Contract Payments,0020,Site Visit 07/10/2014,28/11/2014,392822,95,CAP,Asm Scaffolding Services Ltd,14573K
Gloucester City Council,23UE,Ugly Structures,GY010,Contract Payments,0020,Site Visit 30/09/2014,28/11/2014,392930,95,CAP,Asm Scaffolding Services Ltd,14573K
Gloucester City Council,23UE,Ugly Structures,GY010,Contract Payments,0020,"Site Visit, 7 day inspection",28/11/2014,391430,95,CAP,Asm Scaffolding Services Ltd,14573K
Gloucester City Council,23UE,Vehicles,RS140,Fuel,4012,Fuel,28/11/2014,394459,231.21,NET,Allstar Business Solutions Ltd (Arval),06594A
Gloucester City Council,23UE,Client Revs & Bens Contract,RT240,Bailiffs Fees,5368,VAT due on statutory fees,,394442,652.98,NET,Bristow & Sutor,05450M
Gloucester City Council,23UE,Client Revs & Bens Contract,RT240,Bailiffs Fees,5368,VAT due on statutory fees,,394443,0,NET,Bristow & Sutor,05450M
Gloucester City Council,23UE,Commuted Funds- Social Housing,CY047,Contract Payments,0020,Final Grant Payment,,394683,78750,CAP,Greensquare Group Ltd,15036J
Gloucester City Council,23UE,Crematorium,HC200,Repair/Maint Of Monuments,3004,Sanctum 2000 Tablet,,394175,356,NET,The Columbaria Company,55078T
Gloucester City Council,23UE,Crematorium,HC200,"Seeds, Trees, Plants, Shrubs",3028,PLANTS,,394680,570,NET,C Bailey,04060K
Gloucester City Council,23UE,Docks Complex - Catering Servs,RB110,Catering Provisions -Food,5110,Food w/e 16/11/2014,,394036,68.19,NET,Janes Pantry,24500W
Gloucester City Council,23UE,Docks Complex - Services,RB100,Cleaning Materials,3600,Cleaning Materials,,393938,39.88,NET,Cleanmy Ltd,06971S
Gloucester City Council,23UE,Environmental Planning,LM340,Fees For Services Received,5350,LITTER BINS,,394347,440,NET,Wybone Limited,13540L
Gloucester City Council,23UE,Environmental Planning,LM340,Fees For Services Received,5350,Various Items,,394465,1159.24,NET,Wybone Limited,13540L
Gloucester City Council,23UE,Financial Services,RT200,Fees For Services Received,5350,Annual Fee for moderngov ipad app,,394170,1000,NET,Modern Mindset Ltd,11065J
Gloucester City Council,23UE,REDACTED,REDACTED,REDACTED,REDACTED,REDACTED,,REDACTED,293.5,NET,REDACTED,REDACTED
Gloucester City Council,23UE,Investment Property,RB500,General Repair/Maint Buildings,3000,EASTGATE MARKET,,394569,449.38,NET,Rf Gardiner Limited,12299B
Gloucester City Council,23UE,Investment Property,RB500,General Repair/Maint Buildings,3000,GUILDHALL,,394578,19.08,NET,Rf Gardiner Limited,12299B
Gloucester City Council,23UE,REDACTED,REDACTED,REDACTED,REDACTED,REDACTED,,REDACTED,27,NET,REDACTED,REDACTED
Gloucester City Council,23UE,Utilities,PT502,Electricity Supply,3110,ROMAN EXCAVATIONS,,394281,716.35,NET,Southern Electric,05714A
,,,,,,,,Sum:,2515366.37,,,
